Workbook

Sheet 2021
I1: ◄ izbor kalkulacije | O1: EKONOMSKI KAZALCI PRI RAZLIČNI INTENZIVNOSTI IN VELIKOSTI PARCELE
H2: Pšenica | I2: KMETIJSKI INŠTITUT SLOVENIJE
H3: Pšenica | I3: Oddelek za ekonomiko kmetijstva | O3: psenicaB | P3: psenicaC | Q3: psenicaA | R3: psenicaD | S3: psenicaE | T3: psenicaF
F4: =#REF! ->  | H4: Pšenica | I4: Pšenica | K4: 2020 | L4: 2021 | M4: Indeks 2021/20 | Q4: 2021 | Y4: Indeks: M 3 = 100
H5: Pšenica | I5: Model | J5: Enota | O5: M 1 | P5: M 2 | Q5: M 3 | R5: M 4 | S5: M 5 | T5: M 6 | W5: M 1 | X5: M 2 | Y5: M 3 | Z5: M 4 | AA5: M 5 | AB5: M 6
A6: Prid (neto za LC v analitični) | H6: Pšenica | I6: Intenzivnost pridelave | J6: Kg/ha | K6: 6000 | L6: 6000 | O6: 7000 | P6: 6500 | Q6: 6000 | R6: 5500 | S6: 5000 | T6: 6000 | W6: 116.6666667 | X6: 108.3333333 | Y6: 100 | Z6: 91.66666667 | AA6: 83.33333333 | AB6: 100
H7: Pšenica
H8: Pšenica
A9: vel parcele | H9: Pšenica | I9: Velikost poljine | J9: ha | K9: 1 | L9: 1 | M9: 100 | O9: 1 | P9: 1 | Q9: 1 | R9: 1 | S9: 1 | T9: 5 | W9: 100 | X9: 100 | Y9: 100 | Z9: 100 | AA9: 100 | AB9: 500
H10: Pšenica | I10: IZVLEČEK ANALITIČNE KALKULACIJE
H11: Pšenica | I11: Stroški blaga in storitev | J11: EUR/ha | K11: 1269.870574 | L11: 1344.113875 | M11: 105.846525 | O11: 1505.802656 | P11: 1437.181119 | Q11: 1344.113875 | R11: 1284.677769 | S11: 1221.17921 | T11: 1293.130302 | W11: 112.029396 | X11: 106.9240595 | Y11: 100 | Z11: 95.5780454 | AA11: 90.85385048 | AB11: 96.20690083
A12: SEME, SADIKE | H12: Pšenica | I12: Od tega: seme | J12: EUR/ha | K12: 103.8 | L12: 106.4 | M12: 102.504817 | O12: 106.4 | P12: 106.4 | Q12: 106.4 | R12: 106.4 | S12: 106.4 | T12: 106.4 | W12: 100 | X12: 100 | Y12: 100 | Z12: 100 | AA12: 100 | AB12: 100
A13: ORGANSKA GNOJILA | B13: MINERALNA GNOJILA | H13: Pšenica | I13: gnojila | J13: EUR/ha | K13: 313.9448063 | L13: 327.1639193 | M13: 104.2106487 | O13: 381.7499138 | P13: 354.4569165 | Q13: 327.1639193 | R13: 299.870922 | S13: 272.5779247 | T13: 327.1639193 | W13: 116.684601 | X13: 108.3423005 | Y13: 100 | Z13: 91.6576995 | AA13: 83.315399 | AB13: 100
A14: SREDSTVA ZA VARSTVO RASTLIN | H14: Pšenica | I14: sredstva za varstvo | J14: EUR/ha | K14: 127.83915 | L14: 144.04236 | M14: 112.6746853 | O14: 182.14242 | P14: 167.88282 | Q14: 144.04236 | R14: 144.04236 | S14: 144.04236 | T14: 144.04236 | W14: 126.4505941 | X14: 116.5510062 | Y14: 100 | Z14: 100 | AA14: 100 | AB14: 100
A15: druge stor | B15: strojne stor | C15: delo | H15: Pšenica | I15: najete storitve | J15: EUR/ha | K15: 401.0524554 | L15: 410.2148504 | M15: 102.2845877 | O15: 450.5283933 | P15: 430.3716218 | Q15: 410.2148504 | R15: 390.0580789 | S15: 369.9013075 | T15: 410.2148504 | W15: 109.8274216 | X15: 104.9137108 | Y15: 100 | Z15: 95.08628919 | AA15: 90.17257838 | AB15: 100
A16: zav prid | H16: Pšenica | I16: zavarovanje | J16: EUR/ha | K16: 22.41 | L16: 20.169 | M16: 90 | O16: 23.5305 | P16: 21.84975 | Q16: 20.169 | R16: 18.48825 | S16: 16.8075 | T16: 20.169 | W16: 116.6666667 | X16: 108.3333333 | Y16: 100 | Z16: 91.66666667 | AA16: 83.33333333 | AB16: 100
A17: domače strojne storitve | H17: Pšenica | I17: domače strojne storitve | J17: EUR/ha | K17: 278.072314 | L17: 310.9398236 | M17: 111.8197706 | O17: 332.6029579 | P17: 328.997624 | Q17: 310.9398236 | R17: 302.2091879 | S17: 289.55265 | T17: 260.856182 | W17: 106.9669861 | X17: 105.8074904 | Y17: 100 | Z17: 97.19217837 | AA17: 93.12176443 | AB17: 83.89281855
A18: AMORTIZACIJA_a | H18: Pšenica | I18: Amortizacija | J18: EUR/ha | K18: 0 | L18: 0 | O18: 0 | P18: 0 | Q18: 0 | R18: 0 | S18: 0 | T18: 0
A19: domače delo (neto) | B19: OBVEZNOSTI | C19: Stroški kapitala_a | H19: Pšenica | I19: Stroški domačega dela in kapitala | J19: EUR/ha | K19: 304.3348172 | L19: 316.104874 | M19: 103.8674697 | O19: 342.4271586 | P19: 334.0205514 | Q19: 316.104874 | R19: 304.978093 | S19: 290.1791456 | T19: 287.62974 | W19: 108.3270733 | X19: 105.6676372 | Y19: 100 | Z19: 96.48003498 | AA19: 91.79837752 | AB19: 90.99187124
A20: domače delo (neto) | H20: Pšenica | I20: Od tega: domače delo neto | J20: EUR/ha | K20: 128.3532447 | L20: 134.9002001 | M20: 105.1007322 | O20: 149.4407719 | P20: 144.697379 | Q20: 134.9002001 | R20: 128.6966922 | S20: 120.3132558 | T20: 120.533612 | W20: 110.7787622 | X20: 107.2625385 | Y20: 100 | Z20: 95.40140947 | AA20: 89.1868624 | AB20: 89.35020999
A21: STROŠKI SKUPAJ | H21: Pšenica | I21: Stroški skupaj | J21: EUR/ha | K21: 1574.205392 | L21: 1660.218749 | M21: 105.4639222 | O21: 1848.229814 | P21: 1771.20167 | Q21: 1660.218749 | R21: 1589.655862 | S21: 1511.358356 | T21: 1580.760042 | W21: 111.3244755 | X21: 106.6848373 | Y21: 100 | Z21: 95.7497838 | AA21: 91.03368799 | AB21: 95.21396163
A22: Stranski pridelki | H22: Pšenica | I22: Stranski pridelki | J22: EUR/ha | K22: 273.9578591 | L22: 285.7189948 | M22: 104.2930455 | O22: 329.4790916 | P22: 307.5990432 | Q22: 285.7189948 | R22: 256.1194751 | S22: 234.2394267 | T22: 285.7189948 | W22: 115.3157815 | X22: 107.6578907 | Y22: 100 | Z22: 89.64033887 | AA22: 81.98244813 | AB22: 100 | AE22: Slika 1: Cenovne meje doseganja paritetnega dohodka - PŠENICA,
H23: Pšenica | I23: Stroški glavnega pridelka | J23: EUR/ha | K23: 1300.247532 | L23: 1374.499754 | M23: 105.710622 | O23: 1518.750723 | P23: 1463.602627 | Q23: 1374.499754 | R23: 1333.536387 | S23: 1277.118929 | T23: 1295.041048 | W23: 110.4947977 | X23: 106.4825674 | Y23: 100 | Z23: 97.01976181 | AA23: 92.91518061 | AB23: 94.21908181 | AE23: 2021, upoštevani stroški zmanjšani za subvencije
A24: reg+prem+dod1 | B24: reg+prem+dod2 | C24: reg+prem+dod3 | D24: reg+prem+dod4 | E24: reg+prem+dod5 | H24: Pšenica | I24: Subvencije | J24: EUR/ha | K24: 402.685332 | L24: 389.1029806 | M24: 96.62705583 | O24: 390.943819 | P24: 390.6019896 | Q24: 389.1029806 | R24: 388.2725567 | S24: 387.0999623 | T24: 385.8147024 | W24: 100.473098 | X24: 100.3852474 | Y24: 100 | Z24: 99.78657992 | AA24: 99.48522156 | AB24: 99.154908
H25: Pšenica | I25: Stroški, zmanjšani za subvencije | J25: EUR/ha | K25: 897.5622004 | L25: 985.3967733 | M25: 109.7859037 | O25: 1127.806904 | P25: 1073.000637 | Q25: 985.3967733 | R25: 945.2638306 | S25: 890.0189665 | T25: 909.2263452 | W25: 114.4520598 | X25: 108.8902122 | Y25: 100 | Z25: 95.92723015 | AA25: 90.32087283 | AB25: 92.27007535
H26: Pšenica | I26: Stroški, zmanjšani za subvencije/kg | J26: EUR/kg | K26: 0.1495937001 | L26: 0.1642327955 | M26: 109.7859037 | O26: 0.161115272 | P26: 0.1650770211 | Q26: 0.1642327955 | R26: 0.171866151 | S26: 0.1780037933 | T26: 0.1515377242 | W26: 98.10176551 | X26: 100.514042 | Y26: 100 | Z26: 104.6478874 | AA26: 108.3850474 | AB26: 92.27007535
A27: Pc | H27: Pšenica | I27: Prodajna cena | J27: EUR/kg | K27: 0.146 | L27: 0.183 | M27: 125.3424658 | O27: 0.183 | P27: 0.183 | Q27: 0.183 | R27: 0.183 | S27: 0.183 | T27: 0.183 | W27: 100 | X27: 100 | Y27: 100 | Z27: 100 | AA27: 100 | AB27: 100
H28: Pšenica | I28: Vrednost proizvodnje skupaj | J28: EUR/ha | K28: 1552.643191 | L28: 1772.821975 | M28: 114.1809004 | O28: 2001.422911 | P28: 1887.701033 | Q28: 1772.821975 | R28: 1650.892032 | S28: 1536.339389 | T28: 1769.533697 | W28: 112.8947485 | X28: 106.4800109 | Y28: 100 | Z28: 93.12226804 | AA28: 86.66066928 | AB28: 99.8145173
H29: Pšenica | I29: Od tega interna realizacija | J29: EUR/ha | K29: 0 | L29: 0 | O29: 0 | P29: 0 | Q29: 0 | R29: 0 | S29: 0 | T29: 0
H30: Pšenica | I30: OBRAČUN DOHODKA
A31: vred glav prid | H31: Pšenica | I31: Vrednost finalne proizvodnje skupaj | J31: EUR/ha | K31: 1552.643191 | L31: 1772.821975 | M31: 114.1809004 | O31: 2001.422911 | P31: 1887.701033 | Q31: 1772.821975 | R31: 1650.892032 | S31: 1536.339389 | T31: 1769.533697 | W31: 112.8947485 | X31: 106.4800109 | Y31: 100 | Z31: 93.12226804 | AA31: 86.66066928 | AB31: 99.8145173
A32: SUM element | H32: Pšenica | I32: Stroški zmanjšani za interno realizacijo | J32: EUR/ha | K32: 1574.205392 | L32: 1660.218749 | M32: 105.4639222 | O32: 1848.229814 | P32: 1771.20167 | Q32: 1660.218749 | R32: 1589.655862 | S32: 1511.358356 | T32: 1580.760042 | W32: 111.3244755 | X32: 106.6848373 | Y32: 100 | Z32: 95.7497838 | AA32: 91.03368799 | AB32: 95.21396163
A33: Kupljen material in storitve | H33: Pšenica | I33: Stroški kupljenega blaga in storitev | J33: EUR/ha | K33: 1129.029923 | L33: 1195.122046 | M33: 105.8538859 | O33: 1345.702957 | P33: 1279.307251 | Q33: 1195.122046 | R33: 1139.88768 | S33: 1082.78454 | T33: 1168.338815 | W33: 112.5996262 | X33: 107.0440676 | Y33: 100 | Z33: 95.37834929 | AA33: 90.6003319 | AB33: 97.75895434
A34: Amortizacija | H34: Pšenica | I34: Amortizacija | J34: EUR/ha | K34: 107.6764969 | L34: 113.7190883 | M34: 105.6118016 | O34: 122.0367936 | P34: 120.3458817 | Q34: 113.7190883 | R34: 110.5760668 | S34: 105.8232671 | T34: 94.83005647 | W34: 107.3142561 | X34: 105.8273361 | Y34: 100 | Z34: 97.23615308 | AA34: 93.05673192 | AB34: 83.3897439
H35: Pšenica | I35: Stroški domačega dela in kapitala | J35: EUR/ha | K35: 337.4989718 | L35: 351.3776142 | M35: 104.1122029 | O35: 380.4900638 | P35: 371.5485376 | Q35: 351.3776142 | R35: 339.192116 | S35: 322.750548 | T35: 317.5911705 | W35: 108.2852317 | X35: 105.740526 | Y35: 100 | Z35: 96.53207895 | AA35: 91.8529055 | AB35: 90.38457705
H36: Pšenica | I36: Bruto dodana vrednost | J36: EUR/ha | K36: 423.6132684 | L36: 577.6999292 | M36: 136.3743708 | O36: 655.7199535 | P36: 608.3937819 | Q36: 577.6999292 | R36: 511.0043522 | S36: 453.5548486 | T36: 601.1948818 | W36: 113.5052854 | X36: 105.3131135 | Y36: 100 | Z36: 88.45497919 | AA36: 78.51045597 | AB36: 104.0669821
H37: Pšenica | I37: Neto dodana vrednost | J37: EUR/ha | K37: 315.9367714 | L37: 463.980841 | M37: 146.8587651 | O37: 533.6831599 | P37: 488.0479002 | Q37: 463.980841 | R37: 400.4282854 | S37: 347.7315815 | T37: 506.3648253 | W37: 115.0226718 | X37: 105.1870804 | Y37: 100 | Z37: 86.30276297 | AA37: 74.94524575 | AB37: 109.1348566
A38: delo direktno | B38: delo prenešeno | H38: Pšenica | I38: Neto dodana vrednost/uro | J38: EUR/uro | K38: 14.9217366 | L38: 21.88856217 | M38: 146.689107 | O38: 22.80285696 | P38: 21.4873609 | Q38: 21.88856217 | R38: 19.75856691 | S38: 18.31024471 | T38: 26.90559141 | W38: 104.1770436 | X38: 98.16707342 | Y38: 100 | Z38: 90.26891195 | AA38: 83.65211275 | AB38: 122.9207803 | AE38: Slika 2: Kazalniki modelne ocene dohodka - PŠENICA,
A39: LC | H39: Pšenica | K39: 0.01463909548 | L39: 0 | O39: 0 | P39: 0 | Q39: 0 | R39: 0 | S39: 0 | T39: 0 | AE39: 2021
A40: KONTROLA | H40: Ječmen tržni | I40: KMETIJSKI INŠTITUT SLOVENIJE
H41: Ječmen tržni | I41: Oddelek za ekonomiko kmetijstva | K41: jecmenT | L41: jecmenT | O41: jecmenTB | P41: jecmenTC | Q41: jecmenTA | R41: jecmenTD | S41: jecmenTE | T41: jecmenTF
F42: jecmenT | H42: Ječmen tržni | I42: Ječmen tržni | K42: 2020 | L42: 2021 | M42: Indeks 2021/20 | Q42: 2021 | Y42: Indeks: M 3 = 100
H43: Ječmen tržni | I43: Model | J43: Enota | O43: M 1 | P43: M 2 | Q43: M 3 | R43: M 4 | S43: M 5 | T43: M 6 | W43: M 1 | X43: M 2 | Y43: M 3 | Z43: M 4 | AA43: M 5 | AB43: M 6
A44: Prid (neto za LC v analitični) | H44: Ječmen tržni | I44: Intenzivnost pridelave | J44: Kg/ha | K44: 5500 | L44: 5500 | O44: 6500 | P44: 6000 | Q44: 5500 | R44: 5000 | S44: 4500 | T44: 5500 | W44: 118.1818182 | X44: 109.0909091 | Y44: 100 | Z44: 90.90909091 | AA44: 81.81818182 | AB44: 100
H45: Ječmen tržni
H46: Ječmen tržni
A47: vel parcele | H47: Ječmen tržni | I47: Velikost poljine | J47: ha | K47: 1 | L47: 1 | O47: 1 | P47: 1 | Q47: 1 | R47: 1 | S47: 1 | T47: 5 | W47: 100 | X47: 100 | Y47: 100 | Z47: 100 | AA47: 100 | AB47: 500
H48: Ječmen tržni | I48: IZVLEČEK ANALITIČNE KALKULACIJE
H49: Ječmen tržni | I49: Stroški blaga in storitev | J49: EUR/ha | K49: 1176.437959 | L49: 1214.975892 | M49: 103.2758151 | O49: 1345.152268 | P49: 1280.944164 | Q49: 1214.975892 | R49: 1163.503601 | S49: 1091.164254 | T49: 1109.648397 | W49: 110.7143177 | X49: 105.4295952 | Y49: 100 | Z49: 95.76351344 | AA49: 89.80953959 | AB49: 91.33089841
A50: SEME, SADIKE | H50: Ječmen tržni | I50: Od tega: seme | J50: EUR/ha | K50: 115.5 | L50: 113.52 | M50: 98.28571429 | O50: 113.52 | P50: 113.52 | Q50: 113.52 | R50: 113.52 | S50: 113.52 | T50: 113.52 | W50: 100 | X50: 100 | Y50: 100 | Z50: 100 | AA50: 100 | AB50: 100
A51: ORGANSKA GNOJILA | B51: MINERALNA GNOJILA | H51: Ječmen tržni | I51: gnojila | J51: EUR/ha | K51: 256.2325967 | L51: 261.9632711 | M51: 102.2365126 | O51: 316.3792646 | P51: 289.3595612 | Q51: 261.9632711 | R51: 234.566981 | S51: 207.1706908 | T51: 261.9632711 | W51: 120.7723752 | X51: 110.4580654 | Y51: 100 | Z51: 89.54193463 | AA51: 79.08386927 | AB51: 100
A52: SREDSTVA ZA VARSTVO RASTLIN | H52: Ječmen tržni | I52: sredstva za varstvo | J52: EUR/ha | K52: 127.83915 | L52: 121.667232 | M52: 95.17212216 | O52: 121.667232 | P52: 121.667232 | Q52: 121.667232 | R52: 121.667232 | S52: 121.667232 | T52: 121.667232 | W52: 100 | X52: 100 | Y52: 100 | Z52: 100 | AA52: 100 | AB52: 100
A53: druge stor | B53: strojne stor | C53: delo | H53: Ječmen tržni | I53: najete storitve | J53: EUR/ha | K53: 351.7818307 | L53: 359.2222233 | M53: 102.1150588 | O53: 393.929247 | P53: 376.5757351 | Q53: 359.2222233 | R53: 341.8687115 | S53: 324.5151996 | T53: 320.8886302 | W53: 109.661714 | X53: 104.830857 | Y53: 100 | Z53: 95.16914302 | AA53: 90.33828605 | AB53: 89.3287245
A54: zav prid | H54: Ječmen tržni | I54: zavarovanje | J54: EUR/ha | K54: 19.173 | L54: 17.2557 | M54: 90 | O54: 18.8244 | P54: 18.8244 | Q54: 17.2557 | R54: 15.687 | S54: 14.1183 | T54: 17.2557 | W54: 109.0909091 | X54: 109.0909091 | Y54: 100 | Z54: 90.90909091 | AA54: 81.81818182 | AB54: 100
A55: domače strojne storitve | H55: Ječmen tržni | I55: domače strojne storitve | J55: EUR/ha | K55: 287.3120429 | L55: 320.7942552 | M55: 111.6536056 | O55: 356.8010774 | P55: 338.6989013 | Q55: 320.7942552 | R55: 317.0661149 | S55: 292.8367676 | T55: 256.6885854 | W55: 111.2242728 | X55: 105.5813487 | Y55: 100 | Z55: 98.83784068 | AA55: 91.28491638 | AB55: 80.01657798
A56: AMORTIZACIJA_a | H56: Ječmen tržni | I56: Amortizacija | J56: EUR/ha | K56: 0 | L56: 0 | O56: 0 | P56: 0 | Q56: 0 | R56: 0 | S56: 0 | T56: 0
A57: domače delo (neto) | B57: OBVEZNOSTI | C57: Stroški kapitala_a | H57: Ječmen tržni | I57: Stroški domačega dela in kapitala | J57: EUR/ha | K57: 307.4596584 | L57: 319.0853086 | M57: 103.7811953 | O57: 354.5413653 | P57: 336.7662679 | Q57: 319.0853086 | R57: 310.6347561 | S57: 291.0191268 | T57: 240.1522264 | W57: 111.1117798 | X57: 105.5411386 | Y57: 100 | Z57: 97.35163222 | AA57: 91.20417612 | AB57: 75.26270248
A58: domače delo (neto) | H58: Ječmen tržni | I58: Od tega: domače delo neto | J58: EUR/ha | K58: 128.2314628 | L58: 134.7722064 | M58: 105.1007322 | O58: 154.4801708 | P58: 144.6651457 | Q58: 134.7722064 | R58: 129.9794255 | S58: 119.3461849 | T58: 88.66417308 | W58: 114.6231668 | X58: 107.3404893 | Y58: 100 | Z58: 96.44379135 | AA58: 88.55400389 | AB58: 65.7881736
A59: STROŠKI SKUPAJ | H59: Ječmen tržni | I59: Stroški skupaj | J59: EUR/ha | K59: 1483.897618 | L59: 1534.0612 | M59: 103.3805285 | O59: 1699.693633 | P59: 1617.710432 | Q59: 1534.0612 | R59: 1474.138357 | S59: 1382.183381 | T59: 1349.800624 | W59: 110.7969899 | X59: 105.4527963 | Y59: 100 | Z59: 96.09384274 | AA59: 90.09962452 | AB59: 87.98870759
A60: Stranski pridelki | H60: Ječmen tržni | I60: Stranski pridelki | J60: EUR/ha | K60: 245.9092198 | L60: 256.1194751 | M60: 104.1520425 | O60: 307.5990432 | P60: 285.7189948 | Q60: 256.1194751 | R60: 234.2394267 | S60: 212.3593783 | T60: 264.3713716 | W60: 120.0998257 | X60: 111.5569188 | Y60: 100 | Z60: 91.45709306 | AA60: 82.91418611 | AB60: 103.2218934 | AE60: Slika 1: Cenovne meje doseganja paritetnega dohodka - JEČMEN - tržni,
H61: Ječmen tržni | I61: Stroški glavnega pridelka | J61: EUR/ha | K61: 1237.988398 | L61: 1277.941725 | M61: 103.227278 | O61: 1392.09459 | P61: 1331.991438 | Q61: 1277.941725 | R61: 1239.898931 | S61: 1169.824003 | T61: 1085.429252 | W61: 108.9325564 | X61: 104.2294348 | Y61: 100 | Z61: 97.02311977 | AA61: 91.53969856 | AB61: 84.93573931 | AE61: 2021, upoštevani stroški zmanjšani za subvencije
A62: reg+prem+dod1 | B62: reg+prem+dod2 | C62: reg+prem+dod3 | D62: reg+prem+dod4 | E62: reg+prem+dod5 | H62: Ječmen tržni | I62: Subvencije | J62: EUR/ha | K62: 403.2480853 | L62: 389.6655017 | M62: 96.63170538 | O62: 392.8410443 | P62: 391.3379623 | Q62: 389.6655017 | R62: 389.3124004 | S62: 387.0049214 | T62: 380.7727222 | W62: 100.8149407 | X62: 100.4292042 | Y62: 100 | Z62: 99.9093835 | AA62: 99.3172143 | AB62: 97.71784276
H63: Ječmen tržni | I63: Stroški, zmanjšani za subvencije | J63: EUR/ha | K63: 834.7403127 | L63: 888.2762234 | M63: 106.4134809 | O63: 999.253546 | P63: 940.6534753 | Q63: 888.2762234 | R63: 850.5865302 | S63: 782.8190816 | T63: 704.6565299 | W63: 112.49356 | X63: 105.896505 | Y63: 100 | Z63: 95.75698502 | AA63: 88.12788871 | AB63: 79.3285367
H64: Ječmen tržni | I64: Stroški, zmanjšani za subvencije/kg | J64: EUR/kg | K64: 0.1517709659 | L64: 0.1615047679 | M64: 106.4134809 | O64: 0.1537313148 | P64: 0.1567755792 | Q64: 0.1615047679 | R64: 0.170117306 | S64: 0.1739597959 | T64: 0.1281193691 | W64: 95.18685842 | X64: 97.07179624 | Y64: 100 | Z64: 105.3326835 | AA64: 107.711864 | AB64: 79.3285367
A65: Pc | H65: Ječmen tržni | I65: Prodajna cena | J65: EUR/kg | K65: 0.125 | L65: 0.165 | M65: 132 | O65: 0.165 | P65: 0.165 | Q65: 0.165 | R65: 0.165 | S65: 0.165 | T65: 0.165 | W65: 100 | X65: 100 | Y65: 100 | Z65: 100 | AA65: 100 | AB65: 100
H66: Ječmen tržni | I66: Vrednost proizvodnje skupaj | J66: EUR/ha | K66: 1336.657305 | L66: 1553.284977 | M66: 116.2066725 | O66: 1772.940087 | P66: 1667.056957 | Q66: 1553.284977 | R66: 1448.551827 | S66: 1341.8643 | T66: 1552.644094 | W66: 114.1413272 | X66: 107.3246044 | Y66: 100 | Z66: 93.25731265 | AA66: 86.38880306 | AB66: 99.95874015
H67: Ječmen tržni | I67: Od tega interna realizacija | J67: EUR/ha | K67: 0 | L67: 0 | O67: 0 | P67: 0 | Q67: 0 | R67: 0 | S67: 0 | T67: 0
H68: Ječmen tržni | I68: OBRAČUN DOHODKA
A69: vred glav prid | H69: Ječmen tržni | I69: Vrednost finalne proizvodnje skupaj | J69: EUR/ha | K69: 1336.657305 | L69: 1553.284977 | M69: 116.2066725 | O69: 1772.940087 | P69: 1667.056957 | Q69: 1553.284977 | R69: 1448.551827 | S69: 1341.8643 | T69: 1552.644094 | W69: 114.1413272 | X69: 107.3246044 | Y69: 100 | Z69: 93.25731265 | AA69: 86.38880306 | AB69: 99.95874015
A70: SUM element | H70: Ječmen tržni | I70: Stroški zmanjšani za interno realizacijo | J70: EUR/ha | K70: 1483.897618 | L70: 1534.0612 | M70: 103.3805285 | O70: 1699.693633 | P70: 1617.710432 | Q70: 1534.0612 | R70: 1474.138357 | S70: 1382.183381 | T70: 1349.800624 | W70: 110.7969899 | X70: 105.4527963 | Y70: 100 | Z70: 96.09384274 | AA70: 90.09962452 | AB70: 87.98870759
A71: Kupljen material in storitve | H71: Ječmen tržni | I71: Stroški kupljenega blaga in storitev | J71: EUR/ha | K71: 1032.215849 | L71: 1062.589458 | M71: 102.9425637 | O71: 1175.561452 | P71: 1120.19283 | Q71: 1062.589458 | R71: 1013.336571 | S71: 951.1202595 | T71: 982.2100392 | W71: 110.6317631 | X71: 105.4210374 | Y71: 100 | Z71: 95.36482446 | AA71: 89.50966458 | AB71: 92.43551514
A72: Amortizacija | H72: Ječmen tržni | I72: Amortizacija | J72: EUR/ha | K72: 110.0548214 | L72: 116.0476605 | M72: 105.4453218 | O72: 128.8099185 | P72: 122.2311134 | Q72: 116.0476605 | R72: 114.3782051 | S72: 106.900311 | T72: 103.7716379 | W72: 110.997428 | X72: 105.3283736 | Y72: 100 | Z72: 98.56140534 | AA72: 92.11759249 | AB72: 89.42156816
H73: Ječmen tržni | I73: Stroški domačega dela in kapitala | J73: EUR/ha | K73: 341.626947 | L73: 355.4240819 | M73: 104.0386553 | O73: 395.3222634 | P73: 375.2864893 | Q73: 355.4240819 | R73: 346.4235811 | S73: 324.1628107 | T73: 263.8189467 | W73: 111.2255144 | X73: 105.5883685 | Y73: 100 | Z73: 97.46767277 | AA73: 91.20451517 | AB73: 74.22652547
H74: Ječmen tržni | I74: Bruto dodana vrednost | J74: EUR/ha | K74: 304.4414557 | L74: 490.695519 | M74: 161.1789426 | O74: 597.378636 | P74: 546.8641275 | Q74: 490.695519 | R74: 435.215256 | S74: 390.7440401 | T74: 570.4340546 | W74: 121.7412046 | X74: 111.4467335 | Y74: 100 | Z74: 88.69354603 | AA74: 79.63065179 | AB74: 116.2501047
H75: Ječmen tržni | I75: Neto dodana vrednost | J75: EUR/ha | K75: 194.3866343 | L75: 374.6478585 | M75: 192.7333429 | O75: 468.5687175 | P75: 424.633014 | Q75: 374.6478585 | R75: 320.8370509 | S75: 283.8437291 | T75: 466.6624168 | W75: 125.0691034 | X75: 113.3419035 | Y75: 100 | Z75: 85.6369638 | AA75: 75.7628057 | AB75: 124.5602787
A76: delo direktno | B76: delo prenešeno | H76: Ječmen tržni | I76: Neto dodana vrednost/uro | J76: EUR/uro | K76: 9.15324712 | L76: 17.62048275 | M76: 192.5052664 | O76: 19.27945476 | P76: 18.63624037 | Q76: 17.62048275 | R76: 15.60250696 | S76: 15.01600208 | T76: 33.405975 | W76: 109.4150202 | X76: 105.7646412 | Y76: 100 | Z76: 88.54755672 | AA76: 85.21901634 | AB76: 189.5860373 | AE76: Slika 2: Kazalniki modelne ocene dohodka - JEČMEN - tržni,
A77: LC | H77: Ječmen tržni | K77: 0.009733801953 | L77: 0 | O77: 0 | P77: 0 | Q77: 0 | R77: 0 | S77: 0 | T77: 0 | AE77: 2021
H78: Oljna ogrščica | I78: KMETIJSKI INŠTITUT SLOVENIJE
H79: Oljna ogrščica | I79: Oddelek za ekonomiko kmetijstva | K79: oljrep | L79: oljrep | O79: oljrepB | P79: oljrepA | Q79: oljrepC | R79: oljrepD | S79: oljrepE | T79: oljrepF
F80: oljrep | H80: Oljna ogrščica | I80: Oljna ogrščica | K80: 2020 | L80: 2021 | M80: Indeks 2021/20 | Q80: 2021 | Y80: Indeks: M 2 = 100
H81: Oljna ogrščica | I81: Model | J81: Enota | O81: M 1 | P81: M 2 | Q81: M 3 | R81: M 4 | S81: M 5 | T81: M 6 | W81: M 1 | X81: M 2 | Y81: M 3 | Z81: M 4 | AA81: M 5 | AB81: M 6
A82: Prid (neto za LC v analitični) | H82: Oljna ogrščica | I82: Intenzivnost pridelave | J82: Kg/ha | K82: 3500 | L82: 3500 | O82: 4000 | P82: 3500 | Q82: 3000 | R82: 2500 | S82: 3000 | T82: 3500 | W82: 114.2857143 | X82: 100 | Y82: 85.71428571 | Z82: 71.42857143 | AA82: 85.71428571 | AB82: 100
H83: Oljna ogrščica
H84: Oljna ogrščica
A85: vel parcele | H85: Oljna ogrščica | I85: Velikost poljine | J85: ha | K85: 1 | L85: 1 | M85: 100 | O85: 1 | P85: 1 | Q85: 1 | R85: 1 | S85: 5 | T85: 5 | W85: 100 | X85: 100 | Y85: 100 | Z85: 100 | AA85: 500 | AB85: 500
H86: Oljna ogrščica | I86: IZVLEČEK ANALITIČNE KALKULACIJE
H87: Oljna ogrščica | I87: Stroški blaga in storitev | J87: EUR/ha | K87: 1156.787045 | L87: 1210.358724 | M87: 104.6310753 | O87: 1293.598683 | P87: 1210.358724 | Q87: 1117.752195 | R87: 1013.890586 | S87: 1060.458141 | T87: 1151.6019 | W87: 106.8772966 | X87: 100 | Y87: 92.34883621 | Z87: 83.76777608 | AA87: 87.61519373 | AB87: 95.14550336
A88: SEME, SADIKE | H88: Oljna ogrščica | I88: Od tega: seme | J88: EUR/ha | K88: 76.595 | L88: 77.51 | M88: 101.1945949 | O88: 77.51 | P88: 77.51 | Q88: 77.51 | R88: 77.51 | S88: 77.51 | T88: 77.51 | W88: 100 | X88: 100 | Y88: 100 | Z88: 100 | AA88: 100 | AB88: 100
A89: ORGANSKA GNOJILA | B89: MINERALNA GNOJILA | H89: Oljna ogrščica | I89: gnojila | J89: EUR/ha | K89: 390.6856716 | L89: 393.5922877 | M89: 100.7439782 | O89: 459.0907712 | P89: 393.5922877 | Q89: 328.0081659 | R89: 262.396827 | S89: 328.0081659 | T89: 393.5922877 | W89: 116.6412009 | X89: 100 | Y89: 83.33704093 | Z89: 66.66716682 | AA89: 83.33704093 | AB89: 100
A90: SREDSTVA ZA VARSTVO RASTLIN | H90: Oljna ogrščica | I90: sredstva za varstvo | J90: EUR/ha | K90: 126.34842 | L90: 131.46882 | M90: 104.0526031 | O90: 131.46882 | P90: 131.46882 | Q90: 131.46882 | R90: 131.46882 | S90: 131.46882 | T90: 131.46882 | W90: 100 | X90: 100 | Y90: 100 | Z90: 100 | AA90: 100 | AB90: 100
A91: druge stor | B91: strojne stor | C91: delo | H91: Oljna ogrščica | I91: najete storitve | J91: EUR/ha | K91: 245.1664129 | L91: 261.1329113 | M91: 106.5125146 | O91: 274.3899567 | P91: 261.1329113 | Q91: 247.8758658 | R91: 234.6188204 | S91: 247.8758658 | T91: 261.1329113 | W91: 105.0767425 | X91: 100 | Y91: 94.92325751 | Z91: 89.84651503 | AA91: 94.92325751 | AB91: 100
A92: zav prid | H92: Oljna ogrščica | I92: zavarovanje | J92: EUR/ha | K92: 38.25 | L92: 34.425 | M92: 90 | O92: 34.425 | P92: 34.425 | Q92: 34.425 | R92: 28.6875 | S92: 34.425 | T92: 34.425 | W92: 100 | X92: 100 | Y92: 100 | Z92: 83.33333333 | AA92: 100 | AB92: 100
A93: domače strojne storitve | H93: Oljna ogrščica | I93: domače strojne storitve | J93: EUR/ha | K93: 259.8113916 | L93: 288.7181233 | M93: 111.1260448 | O93: 290.271453 | P93: 288.7181233 | Q93: 278.1135897 | R93: 262.1077935 | S93: 221.8487367 | T93: 231.0264454 | W93: 100.5380091 | X93: 100 | Y93: 96.32702875 | Z93: 90.78328387 | AA93: 76.83921401 | AB93: 80.0179922
A94: AMORTIZACIJA_a | H94: Oljna ogrščica | I94: Amortizacija | J94: EUR/ha | K94: 0 | L94: 0 | O94: 0 | P94: 0 | Q94: 0 | R94: 0 | S94: 0 | T94: 0
A95: domače delo (neto) | B95: OBVEZNOSTI | C95: Stroški kapitala_a | H95: Oljna ogrščica | I95: Stroški domačega dela in kapitala | J95: EUR/ha | K95: 211.6578673 | L95: 220.329783 | M95: 104.0971383 | O95: 221.5506727 | P95: 220.329783 | Q95: 212.4280936 | R95: 201.5788917 | S95: 180.0271187 | T95: 186.8758716 | W95: 100.5541192 | X95: 100 | Y95: 96.41369891 | Z95: 91.48962474 | AA95: 81.70802704 | AB95: 84.81643703
A96: domače delo (neto) | H96: Oljna ogrščica | I96: Od tega: domače delo neto | J96: EUR/ha | K96: 84.00205688 | L96: 88.28677686 | M96: 105.1007322 | O96: 88.91146587 | P96: 88.28677686 | Q96: 84.02204431 | R96: 78.34356925 | S96: 67.59175947 | T96: 71.28267831 | W96: 100.707568 | X96: 100 | Y96: 95.16945492 | Z96: 88.73760266 | AA96: 76.55932391 | AB96: 80.73992601
A97: STROŠKI SKUPAJ | H97: Oljna ogrščica | I97: Stroški skupaj | J97: EUR/ha | K97: 1368.444912 | L97: 1430.688507 | M97: 104.5484911 | O97: 1515.149356 | P97: 1430.688507 | Q97: 1330.180289 | R97: 1215.469477 | S97: 1240.485259 | T97: 1338.477772 | W97: 105.9035107 | X97: 100 | Y97: 92.97483573 | Z97: 84.95696103 | AA97: 86.70547457 | AB97: 93.55480005
A98: Stranski pridelki | H98: Oljna ogrščica | I98: Stranski pridelki | J98: EUR/ha | K98: 0 | L98: 0 | O98: 0 | P98: 0 | Q98: 0 | R98: 0 | S98: 0 | T98: 0 | AE98: Slika 1: Cenovne meje doseganja paritetnega dohodka - OLJNA OGRŠČICA,
H99: Oljna ogrščica | I99: Stroški glavnega pridelka | J99: EUR/ha | K99: 1368.444912 | L99: 1430.688507 | M99: 104.5484911 | O99: 1515.149356 | P99: 1430.688507 | Q99: 1330.180289 | R99: 1215.469477 | S99: 1240.485259 | T99: 1338.477772 | W99: 105.9035107 | X99: 100 | Y99: 92.97483573 | Z99: 84.95696103 | AA99: 86.70547457 | AB99: 93.55480005 | AE99: 2021, upoštevani stroški zmanjšani za subvencije
A100: reg+prem+dod1 | B100: reg+prem+dod2 | C100: reg+prem+dod3 | D100: reg+prem+dod4 | H100: Oljna ogrščica | I100: Subvencije | J100: EUR/ha | K100: 279.4583681 | L100: 274.2771829 | M100: 98.14599034 | O100: 274.4197553 | P100: 274.2771829 | Q100: 273.3038457 | R100: 272.0040937 | S100: 269.5426105 | T100: 270.3849866 | W100: 100.0519811 | X100: 100 | Y100: 99.64512641 | Z100: 99.17124378 | AA100: 98.2738001 | AB100: 98.58092595
H101: Oljna ogrščica | I101: Stroški, zmanjšani za subvencije | J101: EUR/ha | K101: 1088.986544 | L101: 1156.411324 | M101: 106.1915164 | O101: 1240.7296 | P101: 1156.411324 | Q101: 1056.876443 | R101: 943.4653835 | S101: 970.942649 | T101: 1068.092785 | U101: 0 | W101: 107.2913742 | X101: 100 | Y101: 91.3927788 | Z101: 81.58562303 | AA101: 83.96170367 | AB101: 92.36270548
H102: Oljna ogrščica | I102: Stroški, zmanjšani za subvencije/kg | J102: EUR/kg | K102: 0.3111390126 | L102: 0.3304032354 | M102: 106.1915164 | O102: 0.3101824001 | P102: 0.3304032354 | Q102: 0.3522921478 | R102: 0.3773861534 | S102: 0.3236475497 | T102: 0.3051693672 | W102: 93.87995239 | X102: 100 | Y102: 106.6249086 | Z102: 114.2198722 | AA102: 97.95532094 | AB102: 92.36270548
A103: Pc | H103: Oljna ogrščica | I103: Prodajna cena | J103: EUR/kg | K103: 0.319 | L103: 0.452 | M103: 141.69279 | O103: 0.452 | P103: 0.452 | Q103: 0.452 | R103: 0.452 | S103: 0.452 | T103: 0.452 | W103: 100 | X103: 100 | Y103: 100 | Z103: 100 | AA103: 100 | AB103: 100
H104: Oljna ogrščica | I104: Vrednost proizvodnje skupaj | J104: EUR/ha | K104: 1395.958368 | L104: 1856.277183 | M104: 132.9751105 | O104: 2082.419755 | P104: 1856.277183 | Q104: 1629.303846 | R104: 1402.004094 | S104: 1625.54261 | T104: 1852.384987 | W104: 112.1825864 | X104: 100 | Y104: 87.7726592 | Z104: 75.52773404 | AA104: 87.57003671 | AB104: 99.79032246
H105: Oljna ogrščica | I105: Od tega interna realizacija | J105: EUR/ha | K105: 0 | L105: 0 | O105: 0 | P105: 0 | Q105: 0 | R105: 0 | S105: 0 | T105: 0
H106: Oljna ogrščica | I106: OBRAČUN DOHODKA
A107: vred glav prid | H107: Oljna ogrščica | I107: Vrednost finalne proizvodnje skupaj | J107: EUR/ha | K107: 1395.958368 | L107: 1856.277183 | M107: 132.9751105 | O107: 2082.419755 | P107: 1856.277183 | Q107: 1629.303846 | R107: 1402.004094 | S107: 1625.54261 | T107: 1852.384987 | W107: 112.1825864 | X107: 100 | Y107: 87.7726592 | Z107: 75.52773404 | AA107: 87.57003671 | AB107: 99.79032246
A108: SUM element | H108: Oljna ogrščica | I108: Stroški zmanjšani za interno realizacijo | J108: EUR/ha | K108: 1368.444912 | L108: 1430.688507 | M108: 104.5484911 | O108: 1515.149356 | P108: 1430.688507 | Q108: 1330.180289 | R108: 1215.469477 | S108: 1240.485259 | T108: 1338.477772 | W108: 105.9035107 | X108: 100 | Y108: 92.97483573 | Z108: 84.95696103 | AA108: 86.70547457 | AB108: 93.55480005
A109: Kupljen material in storitve | H109: Oljna ogrščica | I109: Stroški kupljenega blaga in storitev | J109: EUR/ha | K109: 1020.444515 | L109: 1064.962809 | M109: 104.3626374 | O109: 1145.905201 | P109: 1064.962809 | Q109: 978.8234375 | R109: 883.9156035 | S109: 948.5485391 | T109: 1033.882433 | W109: 107.60049 | X109: 100 | Y109: 91.91151363 | Z109: 82.99966871 | AA109: 89.06870089 | AB109: 97.08155288
A110: Amortizacija | H110: Oljna ogrščica | I110: Amortizacija | J110: EUR/ha | K110: 106.3162295 | L110: 113.4627177 | M110: 106.7219165 | O110: 115.570186 | P110: 113.4627177 | Q110: 108.2933616 | R110: 101.2500116 | S110: 87.30658674 | T110: 91.99326918 | W110: 101.8574104 | X110: 100 | Y110: 95.44400468 | Z110: 89.23637096 | AA110: 76.94737843 | AB110: 81.07797087
H111: Oljna ogrščica | I111: Stroški domačega dela in kapitala | J111: EUR/ha | K111: 241.6841678 | L111: 252.2629801 | M111: 104.3771226 | O111: 253.6739689 | P111: 252.2629801 | Q111: 243.06349 | R111: 230.3038621 | S111: 204.6301336 | T111: 212.60207 | W111: 100.5593325 | X111: 100 | Y111: 96.35321439 | Z111: 91.29514843 | AA111: 81.11778175 | AB111: 84.27795071
H112: Oljna ogrščica | I112: Bruto dodana vrednost | J112: EUR/ha | K112: 375.5138533 | L112: 791.3143738 | M112: 210.7284104 | O112: 936.5145545 | P112: 791.3143738 | Q112: 650.4804082 | R112: 518.0884903 | S112: 676.9940714 | T112: 818.5025539 | W112: 118.3492409 | X112: 100 | Y112: 82.20252655 | Z112: 65.47189176 | AA112: 85.55311186 | AB112: 103.4358254
H113: Oljna ogrščica | I113: Neto dodana vrednost | J113: EUR/ha | K113: 269.1976238 | L113: 677.8516561 | M113: 251.8044723 | O113: 820.9443685 | P113: 677.8516561 | Q113: 542.1870466 | R113: 416.8384786 | S113: 589.6874846 | T113: 726.5092847 | W113: 121.1097386 | X113: 100 | Y113: 79.98609161 | Z113: 61.49405624 | AA113: 86.99358913 | AB113: 107.1782119
A114: delo direktno | B114: delo prenešeno | H114: Oljna ogrščica | I114: Neto dodana vrednost/uro | J114: EUR/uro | K114: 18.52314021 | L114: 46.5715864 | M114: 251.4238184 | O114: 56.0170053 | P114: 46.5715864 | Q114: 39.08829591 | R114: 32.19891583 | S114: 52.86207218 | T114: 61.84443146 | W114: 120.2815056 | X114: 100 | Y114: 83.93163929 | Z114: 69.13854201 | AA114: 113.5071323 | AB114: 132.7943414 | AE114: Slika 2: Kazalniki modelne ocene dohodka - OLJNA OGRŠČICA,
A115: LC | H115: Oljna ogrščica | K115: 0.01926422284 | L115: 0 | O115: 0 | P115: 0 | Q115: 0 | R115: 0 | AE115: 2021
H116: Koruza za zrnje | I116: KMETIJSKI INŠTITUT SLOVENIJE
H117: Koruza za zrnje | I117: Oddelek za ekonomiko kmetijstva | L117: koruzaA | O117: koruzaB | P117: koruzaC | Q117: koruzaA | R117: koruzaD | S117: koruzaE | T117: koruzaF
F118: =#REF! ->  | H118: Koruza za zrnje | I118: Koruza za zrnje | J118: 0 | K118: 2020 | L118: 2021 | M118: Indeks 2021/2020 | Q118: 2021 | Y118: Indeks: M 3 = 100
H119: Koruza za zrnje | I119: Model | O119: M 1 | P119: M 2 | Q119: M 3 | R119: M 4 | S119: M 5 | T119: M 6 | W119: M 1 | X119: M 2 | Y119: M 3 | Z119: M 4 | AA119: M 5 | AB119: M 6
A120: Prid (neto za LC v analitični) | H120: Koruza za zrnje | I120: Intenzivnost pridelave | J120: Kg/ha | K120: 10000 | L120: 10000 | O120: 12000 | P120: 11000 | Q120: 10000 | R120: 9000 | S120: 8000 | T120: 10000 | W120: 120 | X120: 110 | Y120: 100 | Z120: 90 | AA120: 80 | AB120: 100
H121: Koruza za zrnje
H122: Koruza za zrnje
A123: vel parcele | H123: Koruza za zrnje | I123: Velikost poljine | J123: ha | K123: 1 | L123: 1 | O123: 1 | P123: 1 | Q123: 1 | R123: 1 | S123: 1 | T123: 5 | W123: 100 | X123: 100 | Y123: 100 | Z123: 100 | AA123: 100 | AB123: 500 | AP123: KG september
H124: Koruza za zrnje | I124: IZVLEČEK ANALITIČNE KALKULACIJE | AR124: Koruza za zrnje
H125: Koruza za zrnje | I125: Stroški blaga in storitev | J125: EUR/ha | K125: 1487.175319 | L125: 1600.416444 | M125: 107.6145108 | O125: 1808.042775 | P125: 1694.365646 | Q125: 1600.416444 | R125: 1505.444804 | S125: 1382.157814 | T125: 1543.771169 | W125: 112.9732691 | X125: 105.8702972 | Y125: 100 | Z125: 94.06581703 | AA125: 86.36238519 | AB125: 96.46059158 | AP125: Neto pridelek (14 % vlage) | AQ125: t/ha | AR125: 8 | AS125: 10 | AT125: 12 | AU125: 10 | AW125: =+AU125/AS125 -> 1 | AY125: =+AR125/AS125 -> 0.8 | AZ125: =+AT125/AS125 -> 1.2
A126: SEME, SADIKE | H126: Koruza za zrnje | I126: Od tega: seme | J126: EUR/ha | K126: 173.32 | L126: 177.52 | M126: 102.4232633 | O126: 177.52 | P126: 177.52 | Q126: 177.52 | R126: 177.52 | S126: 149.485 | T126: 177.52 | W126: 100 | X126: 100 | Y126: 100 | Z126: 100 | AA126: 84.20741325 | AB126: 100 | AP126: Vlaga ob žetvi | AQ126: % | AR126: 30 | AS126: 30 | AT126: 30 | AU126: 35
A127: ORGANSKA GNOJILA | B127: MINERALNA GNOJILA | H127: Koruza za zrnje | I127: gnojila | J127: EUR/ha | K127: 289.2128605 | L127: 304.0396836 | M127: 105.1266127 | O127: 382.1507323 | P127: 343.138906 | Q127: 304.0396836 | R127: 264.9221814 | S127: 225.8046791 | T127: 304.0396836 | W127: 125.6910703 | X127: 112.8599076 | Y127: 100 | Z127: 87.13408007 | AA127: 74.26816014 | AB127: 100 | AP127: Stroški blaga in storitev, od tega: | AQ127: EUR/ha | AR127: =+S125 -> 1382.157814 | AS127: =+Q125 -> 1600.416444 | AT127: =+O125 -> 1808.042775 | AU127: 1680.4
A128: SREDSTVA ZA VARSTVO RASTLIN | H128: Koruza za zrnje | I128: sredstva za varstvo | J128: EUR/ha | K128: 66.1521 | L128: 68.187 | M128: 103.0760928 | O128: 68.187 | P128: 68.187 | Q128: 68.187 | R128: 68.187 | S128: 68.187 | T128: 68.187 | W128: 100 | X128: 100 | Y128: 100 | Z128: 100 | AA128: 100 | AB128: 100 | AP128: Gnojila | AQ128: EUR/ha | AR128: =+S127 -> 225.8046791 | AS128: =+Q127 -> 304.0396836 | AT128: =+O127 -> 382.1507323 | AU128: 329.4
A129: druge stor | B129: strojne stor | C129: delo | H129: Koruza za zrnje | I129: najete storitve | J129: EUR/ha | K129: 633.707295 | L129: 688.9029256 | M129: 108.7099566 | O129: 790.0746399 | P129: 739.4887827 | Q129: 688.9029256 | R129: 638.3170684 | S129: 587.7312113 | T129: 688.9029256 | W129: 114.6859174 | X129: 107.3429587 | Y129: 100 | Z129: 92.65704132 | AA129: 85.31408265 | AB129: 100 | AP129: Seme | AQ129: EUR/ha | AR129: =+S126 -> 149.485 | AS129: =+Q126 -> 177.52 | AT129: =+O126 -> 177.52 | AU129: 177.5
A130: zav prid | H130: Koruza za zrnje | I130: zavarovanje | J130: EUR/ha | K130: 22.035 | L130: 19.8315 | M130: 90 | O130: 20.823075 | P130: 20.823075 | Q130: 19.8315 | R130: 17.84835 | S130: 15.8652 | T130: 19.8315 | W130: 105 | X130: 105 | Y130: 100 | Z130: 90 | AA130: 80 | AB130: 100 | AP130: Sredstva za varstvo | AQ130: EUR/ha | AR130: =+S128 -> 68.187 | AS130: =+Q128 -> 68.187 | AT130: =+O128 -> 68.187 | AU130: 68.2
A131: domače strojne storitve | H131: Koruza za zrnje | I131: domače strojne storitve | J131: EUR/ha | K131: 284.3548399 | L131: 316.7290007 | M131: 111.3851274 | O131: 339.1289128 | P131: 317.7075587 | Q131: 316.7290007 | R131: 315.7382255 | S131: 314.7474503 | T131: 261.2226005 | W131: 107.0722643 | X131: 100.3089575 | Y131: 100 | Z131: 99.68718519 | AA131: 99.37437039 | AB131: 82.47511275 | AP131: Kombajniranje | AQ131: EUR/ha | AR131: 140 | AS131: 140 | AT131: 140 | AU131: 140
A132: AMORTIZACIJA_a | H132: Koruza za zrnje | I132: Amortizacija | J132: EUR/ha | K132: 0 | L132: 0 | O132: 0 | P132: 0 | Q132: 0 | R132: 0 | S132: 0 | T132: 0 | AP132: Sušenje | AR132: 366.5 | AS132: 458.1 | AT132: 549.7 | AU132: 584.7
A133: domače delo (neto) | B133: OBVEZNOSTI | C133: Stroški kapitala_a | H133: Koruza za zrnje | I133: Stroški domačega dela in kapitala | J133: EUR/ha | K133: 234.893881 | L133: 245.0525074 | M133: 104.3247727 | O133: 257.6738025 | P133: 245.8626291 | Q133: 245.0525074 | R133: 244.2095969 | S133: 242.9109065 | T133: 209.9289938 | W133: 105.1504452 | X133: 100.3305911 | Y133: 100 | Z133: 99.65602864 | AA133: 99.12606449 | AB133: 85.66694379 | AP133: Domače strojne storitve | AQ133: EUR/ha | AR133: =+S131 -> 314.7474503 | AS133: =+Q131 -> 316.7290007 | AT133: =+O131 -> 339.1289128 | AU133: 298
A134: domače delo (neto) | H134: Koruza za zrnje | I134: Od tega: domače delo neto | J134: EUR/ha | K134: 96.30107362 | L134: 101.2131335 | M134: 105.1007322 | O134: 107.7242568 | P134: 101.5484653 | Q134: 101.2131335 | R134: 100.8778018 | S134: 100.54247 | T134: 83.03202637 | W134: 106.4330814 | X134: 100.3313125 | Y134: 100 | Z134: 99.66868752 | AA134: 99.33737505 | AB134: 82.03681033 | AP134: Stroški glavnega pridelka | AQ134: EUR/ha | AR134: =+S137 -> 1625.06872 | AS134: =+Q137 -> 1845.468951 | AT134: =+O137 -> 2065.716578 | AU134: 1917.4
A135: STROŠKI SKUPAJ | H135: Koruza za zrnje | I135: Stroški skupaj | J135: EUR/ha | K135: 1722.0692 | L135: 1845.468951 | M135: 107.1657836 | O135: 2065.716578 | P135: 1940.228275 | Q135: 1845.468951 | R135: 1749.654401 | S135: 1625.06872 | T135: 1753.700163 | W135: 111.9345073 | X135: 105.1347016 | Y135: 100 | Z135: 94.80811908 | AA135: 88.05722357 | AB135: 95.02734587 | AP135: Stroški glavnega pridelka, na kg | AQ135: EUR/kg | AR135: =AR134/(AR125*1000) -> 0.20313359 | AS135: =AS134/(AS125*1000) -> 0.1845468951 | AT135: 0.1721430481 | AU135: 0.192 | AY135: =+AR135/AS135 -> 1.100715295 | AZ135: =+AT135/AS135 -> 0.9327875607
A136: Stranski pridelki | H136: Koruza za zrnje | I136: Stranski pridelki | J136: EUR/ha | K136: 0 | L136: 0 | O136: 0 | P136: 0 | Q136: 0 | R136: 0 | S136: 0 | T136: 0 | AE136: Slika 1: Cenovne meje doseganja paritetnega dohodka - KORUZA ZA ZRNJE, | AP136: – Subvencije | AQ136: EUR/ha | AR136: =+S138 -> 276.4961547 | AS136: =+Q138 -> 276.6495416 | AT136: =+O138 -> 278.7572214 | AU136: 276.7
H137: Koruza za zrnje | I137: Stroški glavnega pridelka | J137: EUR/ha | K137: 1722.0692 | L137: 1845.468951 | M137: 107.1657836 | O137: 2065.716578 | P137: 1940.228275 | Q137: 1845.468951 | R137: 1749.654401 | S137: 1625.06872 | T137: 1753.700163 | W137: 111.9345073 | X137: 105.1347016 | Y137: 100 | Z137: 94.80811908 | AA137: 88.05722357 | AB137: 95.02734587 | AE137: 2021, upoštevani stroški zmanjšani za subvencije | AP137: Stroški zmanjšani za subvencije | AQ137: EUR/ha | AR137: =AR134-AR136 -> 1348.572566 | AS137: =AS134-AS136 -> 1568.81941 | AT137: 1786.959356 | AU137: 1640.7 | AY137: =+AR137/AS137 -> 0.859609817 | AZ137: =+AT137/AS137 -> 1.1390472
A138: reg+prem+dod1 | B138: reg+prem+dod2 | C138: reg+prem+dod3 | D138: reg+prem+dod4 | H138: Koruza za zrnje | I138: Subvencije | J138: EUR/ha | K138: 281.8317059 | L138: 276.6495416 | M138: 98.16125576 | O138: 278.7572214 | P138: 276.7262225 | Q138: 276.6495416 | R138: 276.5728482 | S138: 276.4961547 | T138: 273.0479673 | W138: 100.7618591 | X138: 100.0277177 | Y138: 100 | Z138: 99.97227776 | AA138: 99.94455551 | AB138: 98.69814556 | AP138: Stroški zmanjšani za subvencije, na kg | AQ138: EUR/kg | AR138: =AR137/(AR125*1000) -> 0.1685715707 | AS138: =AS137/(AS125*1000) -> 0.156881941 | AT138: 0.1489132797 | AU138: 0.16407 | AW138: =+AU138/AS138 -> 1.045818269 | AY138: =+AR138/AS138 -> 1.074512271 | AZ138: 0.9492060002
H139: Koruza za zrnje | I139: Stroški, zmanjšani za subvencije | J139: EUR/ha | K139: 1440.237494 | L139: 1568.81941 | M139: 108.9278273 | O139: 1786.959356 | P139: 1663.502053 | Q139: 1568.81941 | R139: 1473.081553 | S139: 1348.572566 | T139: 1480.652196 | W139: 113.90472 | X139: 106.0352799 | Y139: 100 | Z139: 93.89745841 | AA139: 85.9609817 | AB139: 94.38002787
H140: Koruza za zrnje | I140: Stroški, zmanjšani za subvencije/kg | J140: EUR/kg | K140: 0.1440237494 | L140: 0.156881941 | M140: 108.9278273 | O140: 0.1489132797 | P140: 0.1512274593 | Q140: 0.156881941 | R140: 0.1636757281 | S140: 0.1685715707 | T140: 0.1480652196 | W140: 94.92060002 | X140: 96.39570904 | Y140: 100 | Z140: 104.3305093 | AA140: 107.4512271 | AB140: 94.38002787
A141: Pc | H141: Koruza za zrnje | I141: Prodajna cena | J141: EUR/kg | K141: 0.122 | L141: 0.213 | M141: 174.5901639 | O141: 0.213 | P141: 0.213 | Q141: 0.213 | R141: 0.213 | S141: 0.213 | T141: 0.213 | W141: 100 | X141: 100 | Y141: 100 | Z141: 100 | AA141: 100 | AB141: 100 | AU141: 1640.7
H142: Koruza za zrnje | I142: Vrednost proizvodnje skupaj | J142: EUR/ha | K142: 1501.831706 | L142: 2406.649542 | M142: 160.2476184 | O142: 2834.757221 | P142: 2619.726223 | Q142: 2406.649542 | R142: 2193.572848 | S142: 1980.496155 | T142: 2403.047967 | W142: 117.7885343 | X142: 108.8536647 | Y142: 100 | Z142: 91.14633478 | AA142: 82.29266956 | AB142: 99.85034903 | AU142: 0.164
H143: Koruza za zrnje | I143: Od tega interna realizacija | J143: EUR/ha | K143: 0 | L143: 0 | O143: 0 | P143: 0 | Q143: 0 | R143: 0 | S143: 0 | T143: 0
H144: Koruza za zrnje | I144: OBRAČUN DOHODKA
A145: vred glav prid | H145: Koruza za zrnje | I145: Vrednost finalne proizvodnje skupaj | J145: EUR/ha | K145: 1501.831706 | L145: 2406.649542 | M145: 160.2476184 | O145: 2834.757221 | P145: 2619.726223 | Q145: 2406.649542 | R145: 2193.572848 | S145: 1980.496155 | T145: 2403.047967 | W145: 117.7885343 | X145: 108.8536647 | Y145: 100 | Z145: 91.14633478 | AA145: 82.29266956 | AB145: 99.85034903
A146: SUM element | H146: Koruza za zrnje | I146: Stroški zmanjšani za interno realizacijo | J146: EUR/ha | K146: 1722.0692 | L146: 1845.468951 | M146: 107.1657836 | O146: 2065.716578 | P146: 1940.228275 | Q146: 1845.468951 | R146: 1749.654401 | S146: 1625.06872 | T146: 1753.700163 | W146: 111.9345073 | X146: 105.1347016 | Y146: 100 | Z146: 94.80811908 | AA146: 88.05722357 | AB146: 95.02734587
A147: Kupljen material in storitve | H147: Koruza za zrnje | I147: Stroški kupljenega blaga in storitev | J147: EUR/ha | K147: 1340.655042 | L147: 1441.115121 | M147: 107.4933578 | O147: 1636.981455 | P147: 1533.122725 | Q147: 1441.115121 | R147: 1348.090692 | S147: 1226.750912 | T147: 1411.242234 | W147: 113.5913037 | X147: 106.3844729 | Y147: 100 | Z147: 93.54496889 | AA147: 85.12511558 | AB147: 97.92709918
A148: Amortizacija | H148: Koruza za zrnje | I148: Amortizacija | J148: EUR/ha | K148: 113.9274386 | L148: 124.6175549 | M148: 109.3832674 | O148: 134.0587303 | P148: 126.4448689 | Q148: 124.6175549 | R148: 122.785662 | S148: 120.9537691 | T148: 103.8383367 | W148: 107.5761199 | X148: 101.4663376 | Y148: 100 | Z148: 98.52998809 | AA148: 97.05997618 | AB148: 83.32560913
H149: Koruza za zrnje | I149: Stroški domačega dela in kapitala | J149: EUR/ha | K149: 267.4867193 | L149: 279.7362752 | M149: 104.5795006 | O149: 294.6763927 | P149: 280.6606816 | Q149: 279.7362752 | R149: 278.778047 | S149: 277.3640388 | T149: 238.6195926 | W149: 105.3407866 | X149: 100.3304564 | Y149: 100 | Z149: 99.657453 | AA149: 99.15197398 | AB149: 85.30162648
H150: Koruza za zrnje | I150: Bruto dodana vrednost | J150: EUR/ha | K150: 161.1766642 | L150: 965.5344205 | O150: 1197.775767 | P150: 1086.603498 | Q150: 965.5344205 | R150: 845.4821564 | S150: 753.7452423 | T150: 991.8057334 | W150: 124.05314 | X150: 112.5390742 | Y150: 100 | Z150: 87.56623673 | AA150: 78.06508253 | AB150: 102.720909
H151: Koruza za zrnje | I151: Neto dodana vrednost | J151: EUR/ha | K151: 47.24922562 | L151: 840.9168657 | O151: 1063.717037 | P151: 960.1586288 | Q151: 840.9168657 | R151: 722.6964944 | S151: 632.7914732 | T151: 887.9673967 | W151: 126.4949105 | X151: 114.1799705 | Y151: 100 | Z151: 85.94149124 | AA151: 75.25018216 | AB151: 105.5951466
A152: delo direktno | B152: delo prenešeno | H152: Koruza za zrnje | I152: Neto dodana vrednost/uro | J152: EUR/uro | K152: 2.861474673 | L152: 50.84847782 | O152: 60.40985498 | P152: 57.86722478 | Q152: 50.84847782 | R152: 43.84528803 | S152: 38.51895424 | T152: 65.3624455 | W152: 118.8036645 | X152: 113.8032587 | Y152: 100 | Z152: 86.22733641 | AA152: 75.75242345 | AB152: 128.5435637 | AE152: Slika 2: Kazalniki modelne ocene dohodka - KORUZA ZA ZRNJE,
A153: LC | H153: Koruza za zrnje | K153: 0.01285819159 | L153: 0 | AE153: 2021
H154: Krompir pozni | I154: KMETIJSKI INŠTITUT SLOVENIJE
H155: Krompir pozni | I155: Oddelek za ekonomiko kmetijstva | K155: krompir | L155: krompir | O155: krompirB | P155: krompirA | Q155: krompirC | R155: krompirD | S155: krompirE | T155: krompirF
F156: krompir | H156: Krompir pozni | I156: Krompir pozni | K156: 2020 | L156: 2021 | M156: Indeks 2021/2020 | Q156: 2021 | Y156: Indeks: M 2 = 100
H157: Krompir pozni | I157: Model | O157: M 1 | P157: M 2 | Q157: M 3 | R157: M 4 | S157: M 5 | T157: M 6 | W157: M 1 | X157: M 2 | Y157: M 3 | Z157: M 4 | AA157: M 5 | AB157: M 6
A158: Prid (neto za LC v analitični) | H158: Krompir pozni | I158: Glavni pridelek | J158: Kg/ha | K158: 40000 | L158: 40000 | O158: 50000 | P158: 40000 | Q158: 30000 | R158: 25000 | S158: 30000 | T158: 40000 | W158: 125 | X158: 100 | Y158: 75 | Z158: 62.5 | AA158: 75 | AB158: 100
A159: str1_kg | H159: Krompir pozni | I159: Stranski pridelek | J159: Kg/ha | K159: 8000 | L159: 8000 | O159: 10000 | P159: 8000 | Q159: 6000 | R159: 5000 | S159: 6000 | T159: 8000 | W159: 125 | X159: 100 | Y159: 75 | Z159: 62.5 | AA159: 75 | AB159: 100
H160: Krompir pozni
A161: vel parcele | H161: Krompir pozni | I161: Velikost poljine | J161: ha | K161: 1 | L161: 1 | O161: 1 | P161: 1 | Q161: 1 | R161: 1 | S161: 0.2 | T161: 0.5 | W161: 100 | X161: 100 | Y161: 100 | Z161: 100 | AA161: 20 | AB161: 50
H162: Krompir pozni | I162: IZVLEČEK ANALITIČNE KALKULACIJE
H163: Krompir pozni | I163: Stroški blaga in storitev | J163: EUR/ha | K163: 5300.321026 | L163: 5141.914222 | M163: 97.0113734 | O163: 5388.517229 | P163: 5141.914222 | Q163: 4832.490483 | R163: 4608.018386 | S163: 4991.742203 | T163: 5206.526511 | W163: 104.7959378 | X163: 100 | Y163: 93.98232398 | Z163: 89.61678836 | AA163: 97.07945306 | AB163: 101.2565805
A164: SEME, SADIKE | H164: Krompir pozni | I164: Od tega: seme | J164: EUR/ha | K164: 2688 | L164: 2337 | M164: 86.94196429 | O164: 2337 | P164: 2337 | Q164: 2337 | R164: 2337 | S164: 2337 | T164: 2337 | W164: 100 | X164: 100 | Y164: 100 | Z164: 100 | AA164: 100 | AB164: 100
A165: ORGANSKA GNOJILA | B165: MINERALNA GNOJILA | H165: Krompir pozni | I165: gnojila | J165: EUR/ha | K165: 397.9442681 | L165: 407.8933748 | M165: 102.5001256 | O165: 462.2531032 | P165: 407.8933748 | Q165: 351.7894316 | R165: 322.8424456 | S165: 351.7894316 | T165: 407.8933748 | W165: 113.3269457 | X165: 100 | Y165: 86.24543898 | Z165: 79.14873483 | AA165: 86.24543898 | AB165: 100
A166: SREDSTVA ZA VARSTVO RASTLIN | H166: Krompir pozni | I166: sredstva za varstvo | J166: EUR/ha | K166: 512.88456 | L166: 532.30944 | M166: 103.7873786 | O166: 532.30944 | P166: 532.30944 | Q166: 516.09144 | R166: 449.38344 | S166: 516.09144 | T166: 532.30944 | W166: 100 | X166: 100 | Y166: 96.9532759 | Z166: 84.42146733 | AA166: 96.9532759 | AB166: 100
A167: druge stor | B167: strojne stor | C167: delo | H167: Krompir pozni | I167: najete storitve | J167: EUR/ha | K167: 0 | L167: 0 | O167: 0 | P167: 0 | Q167: 0 | R167: 0 | S167: 0 | T167: 0
A168: zav prid | H168: Krompir pozni | I168: zavarovanje | J168: EUR/ha | K168: 131.2 | L168: 118.08 | M168: 90 | O168: 118.08 | P168: 118.08 | Q168: 88.56 | R168: 73.8 | S168: 88.56 | T168: 118.08 | W168: 100 | X168: 100 | Y168: 75 | Z168: 62.5 | AA168: 75 | AB168: 100
A169: domače strojne storitve | H169: Krompir pozni | I169: domače strojne storitve | J169: EUR/ha | K169: 1126.703495 | L169: 1257.613269 | M169: 111.6188309 | O169: 1357.783024 | P169: 1257.613269 | Q169: 1142.627784 | R169: 1075.672286 | S169: 1296.13027 | T169: 1319.830897 | W169: 107.9650683 | X169: 100 | Y169: 90.85684863 | Z169: 85.53283525 | AA169: 103.0627063 | AB169: 104.9472783
A170: AMORTIZACIJA_a | H170: Krompir pozni | I170: Amortizacija | J170: EUR/ha | K170: 0 | L170: 0 | O170: 0 | P170: 0 | Q170: 0 | R170: 0 | S170: 0 | T170: 0
A171: domače delo (neto) | B171: OBVEZNOSTI | C171: Stroški kapitala_a | H171: Krompir pozni | I171: Stroški domačega dela in kapitala | J171: EUR/ha | K171: 3118.507769 | L171: 3279.7814 | M171: 105.1715001 | O171: 3759.384344 | P171: 3279.7814 | Q171: 2788.943642 | R171: 2536.1669 | S171: 2965.493414 | T171: 3353.153421 | W171: 114.6230155 | X171: 100 | Y171: 85.03443679 | Z171: 77.32731516 | AA171: 90.41741056 | AB171: 102.2371009
A172: domače delo (neto) | H172: Krompir pozni | I172: Od tega: domače delo neto | J172: EUR/ha | K172: 1661.163828 | L172: 1745.895347 | M172: 105.1007322 | O172: 2009.159895 | P172: 1745.895347 | Q172: 1477.430921 | R172: 1340.012806 | S172: 1569.212318 | T172: 1784.123983 | W172: 115.0790567 | X172: 100 | Y172: 84.62310896 | Z172: 76.75218385 | AA172: 89.88009053 | AB172: 102.1896293
A173: STROŠKI SKUPAJ | H173: Krompir pozni | I173: Stroški skupaj | J173: EUR/ha | K173: 8418.828795 | L173: 8421.695622 | M173: 100.0340526 | O173: 9147.901573 | P173: 8421.695622 | Q173: 7621.434125 | R173: 7144.185286 | S173: 7957.235618 | T173: 8559.679933 | W173: 108.6230373 | X173: 100 | Y173: 90.49762027 | Z173: 84.83072301 | AA173: 94.48495855 | AB173: 101.6384386
A174: Stranski pridelki | H174: Krompir pozni | I174: Stranski pridelki | J174: EUR/ha | K174: 332.8 | L174: 579.2 | M174: 174.0384615 | O174: 724 | P174: 579.2 | Q174: 434.4 | R174: 362 | S174: 434.4 | T174: 579.2 | W174: 125 | X174: 100 | Y174: 75 | Z174: 62.5 | AA174: 75 | AB174: 100 | AE174: Slika 1: Cenovne meje doseganja paritetnega dohodka - KROMPIR POZNI,
H175: Krompir pozni | I175: Stroški glavnega pridelka | J175: EUR/ha | K175: 8086.028795 | L175: 7842.495622 | M175: 96.98822278 | O175: 8423.901573 | P175: 7842.495622 | Q175: 7187.034125 | R175: 6782.185286 | S175: 7522.835618 | T175: 7980.479933 | W175: 107.4135324 | X175: 100 | Y175: 91.64218217 | Z175: 86.47993716 | AA175: 95.92400149 | AB175: 101.7594439 | AE175: 2021, upoštevani stroški zmanjšani za subvencije
A176: reg+prem+dod1 | B176: reg+prem+dod2 | C176: reg+prem+dod3 | D176: reg+prem+dod4 | H176: Krompir pozni | I176: Subvencije | J176: EUR/ha | K176: 312.92581 | L176: 307.7308178 | M176: 98.33986458 | O176: 307.7308178 | P176: 307.7308178 | Q176: 307.7308178 | R176: 307.7308178 | S176: 307.7308178 | T176: 307.7308178 | W176: 100 | X176: 100 | Y176: 100 | Z176: 100 | AA176: 100 | AB176: 100
H177: Krompir pozni | I177: Stroški, zmanjšani za subvencije | J177: EUR/ha | K177: 7773.102985 | L177: 7534.764804 | M177: 96.93380904 | O177: 8116.170756 | P177: 7534.764804 | Q177: 6879.303307 | R177: 6474.454468 | S177: 7215.1048 | T177: 7672.749115 | W177: 107.7163119 | X177: 100 | Y177: 91.30083666 | Z177: 85.92775801 | AA177: 95.75753175 | AB177: 101.8313022
H178: Krompir pozni | I178: Stroški, zmanjšani za subvencije/kg | J178: EUR/kg | K178: 0.1943275746 | L178: 0.1883691201 | M178: 96.93380904 | O178: 0.1623234151 | P178: 0.1883691201 | Q178: 0.2293101102 | R178: 0.2589781787 | S178: 0.2405034933 | T178: 0.1918187279 | W178: 86.1730495 | X178: 100 | Y178: 121.7344489 | Z178: 137.4844128 | AA178: 127.676709 | AB178: 101.8313022
A179: Pc | H179: Krompir pozni | I179: Prodajna cena | J179: EUR/kg | K179: 0.208 | L179: 0.362 | M179: 174.0384615 | O179: 0.362 | P179: 0.362 | Q179: 0.362 | R179: 0.362 | S179: 0.362 | T179: 0.362 | W179: 100 | X179: 100 | Y179: 100 | Z179: 100 | AA179: 100 | AB179: 100
H180: Krompir pozni | I180: Vrednost proizvodnje skupaj | J180: EUR/ha | K180: 8965.72581 | L180: 15366.93082 | M180: 171.3963949 | O180: 19131.73082 | P180: 15366.93082 | Q180: 11602.13082 | R180: 9719.730818 | S180: 11602.13082 | T180: 15366.93082 | W180: 124.4993619 | X180: 100 | Y180: 75.50063806 | Z180: 63.25095709 | AA180: 75.50063806 | AB180: 100
H181: Krompir pozni | I181: Od tega interna realizacija | J181: EUR/ha | K181: 0 | L181: 0 | O181: 0 | P181: 0 | Q181: 0 | R181: 0 | S181: 0 | T181: 0
H182: Krompir pozni | I182: OBRAČUN DOHODKA
A183: vred glav prid | H183: Krompir pozni | I183: Vrednost finalne proizvodnje skupaj | J183: EUR/ha | K183: 8965.72581 | L183: 15366.93082 | M183: 171.3963949 | O183: 19131.73082 | P183: 15366.93082 | Q183: 11602.13082 | R183: 9719.730818 | S183: 11602.13082 | T183: 15366.93082 | W183: 124.4993619 | X183: 100 | Y183: 75.50063806 | Z183: 63.25095709 | AA183: 75.50063806 | AB183: 100
A184: SUM element | H184: Krompir pozni | I184: Stroški zmanjšani za interno realizacijo | J184: EUR/ha | K184: 8418.828795 | L184: 8421.695622 | M184: 100.0340526 | O184: 9147.901573 | P184: 8421.695622 | Q184: 7621.434125 | R184: 7144.185286 | S184: 7957.235618 | T184: 8559.679933 | W184: 108.6230373 | X184: 100 | Y184: 90.49762027 | Z184: 84.83072301 | AA184: 94.48495855 | AB184: 101.6384386
A185: Kupljen material in storitve | H185: Krompir pozni | I185: Stroški kupljenega blaga in storitev | J185: EUR/ha | K185: 4656.940138 | L185: 4426.904332 | M185: 95.06036583 | O185: 4595.347869 | P185: 4426.904332 | Q185: 4202.463616 | R185: 4024.687367 | S185: 4292.266671 | T185: 4463.373867 | W185: 103.8049961 | X185: 100 | Y185: 94.9300753 | Z185: 90.91426118 | AA185: 96.95864986 | AB185: 100.8238157
A186: Amortizacija | H186: Krompir pozni | I186: Amortizacija | J186: EUR/ha | K186: 452.9368674 | L186: 512.5734568 | M186: 113.166645 | O186: 568.2467569 | P186: 512.5734568 | Q186: 451.8413887 | R186: 418.3635128 | S186: 500.6243385 | T186: 532.2630487 | W186: 110.8615262 | X186: 100 | Y186: 88.15153861 | Z186: 81.62020629 | AA186: 97.66879884 | AB186: 103.841321
H187: Krompir pozni | I187: Stroški domačega dela in kapitala | J187: EUR/ha | K187: 3308.95179 | L187: 3482.217833 | M187: 105.2362819 | O187: 3984.306948 | P187: 3482.217833 | Q187: 2967.12912 | R187: 2701.134407 | S187: 3164.344608 | T187: 3564.043017 | W187: 114.418659 | X187: 100 | Y187: 85.20802725 | Z187: 77.56936917 | AA187: 90.87152957 | AB187: 102.3498008
H188: Krompir pozni | I188: Bruto dodana vrednost | J188: EUR/ha | K188: 4308.785672 | L188: 10940.02649 | M188: 253.9004564 | O188: 14536.38295 | P188: 10940.02649 | Q188: 7399.667202 | R188: 5695.043451 | S188: 7309.864147 | T188: 10903.55695 | W188: 132.8733799 | X188: 100 | Y188: 67.63847612 | Z188: 52.05694391 | AA188: 66.81760923 | AB188: 99.66664125
H189: Krompir pozni | I189: Neto dodana vrednost | J189: EUR/ha | K189: 3855.848804 | L189: 10427.45303 | M189: 270.4321035 | O189: 13968.13619 | P189: 10427.45303 | Q189: 6947.825813 | R189: 5276.679938 | S189: 6809.239809 | T189: 10371.2939 | W189: 133.9553979 | X189: 100 | Y189: 66.63013292 | Z189: 50.60372772 | AA189: 65.30108349 | AB189: 99.46143007
A190: delo direktno | B190: delo prenešeno | H190: Krompir pozni | I190: Neto dodana vrednost/uro | J190: EUR/uro | K190: 15.14352612 | L190: 40.93178873 | M190: 270.2923243 | O190: 47.74674711 | P190: 40.93178873 | Q190: 32.14959992 | R190: 26.88517427 | S190: 29.57012565 | T190: 39.79163674 | W190: 116.6495494 | X190: 100 | Y190: 78.54433172 | Z190: 65.68287169 | AA190: 72.24244668 | AB190: 97.21450728 | AE190: Slika 2: Kazalniki modelne ocene dohodka - KROMPIR POZNI,
A191: LC | H191: Krompir pozni | K191: -0.005958454524 | L191: 0 | O191: 0 | P191: 0 | Q191: 0 | R191: 0 | S191: 0 | T191: 0 | AE191: 2021
H192: Jabolka namizna | I192: KMETIJSKI INŠTITUT SLOVENIJE
H193: Jabolka namizna | I193: Oddelek za ekonomiko kmetijstva | K193: jabolka | L193: jabolka | O193: jabolkaB | P193: jabolkaC | Q193: jabolkaD | R193: jabolkaA | S193: jabolkaE
F194: jabolka | H194: Jabolka namizna | I194: Jabolka namizna | K194: 2020 | L194: 2021 | M194: Indeks 2021/2020 | Q194: 2021 | Y194: Indeks: M 4 = 100 | AO194: Ne
H195: Jabolka namizna | I195: Model | O195: M 1 | P195: M 2 | Q195: M 3 | R195: M 4 | S195: M 5 | W195: M 1 | X195: M 2 | Y195: M 3 | Z195: M 4 | AA195: M 5
A196: Prid (neto za LC v analitični) | H196: Jabolka namizna | I196: Intenzivnost pridelave | J196: Kg/ha | K196: 40000 | L196: 40000 | O196: 60000 | P196: 55000 | Q196: 45000 | R196: 40000 | S196: 35000 | W196: 150 | X196: 137.5 | Y196: 112.5 | Z196: 100 | AA196: 87.5
A197: semenski material | H197: Jabolka namizna | I197: Število dreves | J197: Kos/ha | K197: 3000 | L197: 3000 | O197: 3000 | P197: 3000 | Q197: 3000 | R197: 3000 | S197: 3000 | W197: 100 | X197: 100 | Y197: 100 | Z197: 100 | AA197: 100
H198: Jabolka namizna
H199: Jabolka namizna
H200: Jabolka namizna | I200: IZVLEČEK ANALITIČNE KALKULACIJE
... 203 more rows

Sheet PODATKI grafi (hidden)
O35: KONTROLA | Q35: BRUTO DODANA VREDNOST
O37: =+#REF! ->  | Q37: =Q88-'2021'!O36 -> 0 | R37: =R88-'2021'!P36 -> 0 | S37: =S88-'2021'!Q36 -> 0 | T37: =T88-'2021'!R36 -> 0 | U37: =U88-'2021'!S36 -> 0 | V37: =V88-'2021'!T36 -> 0
O38: =#REF! ->  | Q38: ='2021'!O74-Q125 -> 0 | R38: ='2021'!P74-R125 -> 0 | S38: ='2021'!Q74-S125 -> 0 | T38: ='2021'!R74-T125 -> 0 | U38: ='2021'!S74-U125 -> 0 | V38: ='2021'!T74-V125 -> 0
O39: =#REF! ->  | Q39: ='2021'!O112-Q162 -> 0 | R39: ='2021'!P112-R162 -> 0 | S39: ='2021'!Q112-S162 -> 0 | T39: ='2021'!R112-T162 -> 0 | U39: ='2021'!S112-U162 -> 0 | V39: ='2021'!T112-V162 -> 0
O40: =#REF! ->  | Q40: ='2021'!O150-Q199 -> 0 | R40: ='2021'!P150-R199 -> 0 | S40: ='2021'!Q150-S199 -> 0 | T40: ='2021'!R150-T199 -> 0 | U40: ='2021'!S150-U199 -> 0 | V40: ='2021'!T150-V199 -> 0
O41: =#REF! ->  | Q41: ='2021'!O188-Q236 -> 0 | R41: ='2021'!P188-R236 -> 0 | S41: ='2021'!Q188-S236 -> 0 | T41: ='2021'!R188-T236 -> 0 | U41: ='2021'!S188-U236 -> 0 | V41: ='2021'!T188-V236 -> 0
O42: =#REF! ->  | Q42: ='2021'!O226-Q273 -> 0 | R42: ='2021'!P226-R273 -> 0 | S42: ='2021'!Q226-S273 -> 0 | T42: ='2021'!R226-T273 -> 0 | U42: ='2021'!S226-U273 -> 0 | V42: ='2021'!T226-V273 -> 0
O43: =#REF! ->  | Q43: ='2021'!O264-Q310 -> 0 | R43: ='2021'!P264-R310 -> 0 | S43: ='2021'!Q264-S310 -> 0 | T43: ='2021'!R264-T310 -> 0 | U43: ='2021'!S264-U310 -> 0 | V43: ='2021'!T264-V310 -> 0
O44: =#REF! ->  | Q44: ='2021'!O302-Q347 -> 0 | R44: ='2021'!P302-R347 -> 0 | S44: ='2021'!Q302-S347 -> 0 | T44: ='2021'!R302-T347 -> 0
O45: =#REF! ->  | Q45: ='2021'!O340-Q384 -> 0 | R45: ='2021'!P340-R384 -> 0 | S45: ='2021'!Q340-S384 -> 0 | T45: ='2021'!R340-T384 -> 0 | U45: ='2021'!S340-U384 -> 0 | V45: ='2021'!T340-V384 -> 0
O46: =#REF! ->  | Q46: ='2021'!O378-Q421 -> 0 | R46: ='2021'!P378-R421 -> 0 | S46: ='2021'!Q378-S421 -> 0 | T46: ='2021'!R378-T421 -> 0 | U46: ='2021'!S378-U421 -> 0 | V46: ='2021'!T378-V421 -> 0
A50: reg+prem+dod1 | B50: reg+prem+dod5 | C50: reg+prem+dod3 | D50: reg+prem+dod4 | O50: ='2021'!#REF! ->  | AD50: GRAFI TU LE ZA ANALIZO, IZPIS NA leto!
F51: 1 | G51: =+F51+1 -> 2 | H51: 3 | I51: 4 | J51: 5 | K51: 6 | L51: 7 | M51: 8 | N51: 9 | O51: 10
Q52: EKONOMSKI KAZALCI PRI RAZLIČNI INTENZIVNOSTI IN VELIKOSTI PARCELE
H54: =1 -> 1 | I54: =+J56 -> Pšenica | J54: KMETIJSKI INŠTITUT SLOVENIJE | O54: =+O62-O74+O67-'2021'!L26 -> -2.273736754e-13 | Q54: =+Q62-Q74+Q67-'2021'!O26 -> 0 | R54: =+R62-R74+R67-'2021'!P26 -> 0 | S54: =+S62-S74+S67-'2021'!Q26 -> -2.273736754e-13 | T54: =+T62-T74+T67-'2021'!R26 -> 2.273736754e-13 | U54: =+U62-U74+U67-'2021'!S26 -> 4.547473509e-13 | V54: =+V62-V74+V67-'2021'!T26 -> -4.547473509e-13
H55: =H54+1 -> 2 | I55: =+I54 -> Pšenica | J55: Oddelek za ekonomiko kmetijstva | O55: =#REF! ->  | Q55: =#REF! ->  | R55: =#REF! ->  | S55: =#REF! ->  | T55: =#REF! ->  | U55: =#REF! ->  | V55: =#REF! -> 
F56: =#REF! ->  | H56: =H55+1 -> 3 | I56: =+I55 -> Pšenica | J56: Pšenica | K56: Enota | O56: =+O50 ->  | S56: =+O56 ->  | X56: Indeks: M 3 =100
H57: 4 | I57: =+I56 -> Pšenica | J57: Model | Q57: M 1 | R57: M 2 | S57: M 3 | T57: M 4 | U57: M5 | V57: M6 | X57: M 1 | Y57: M 3 | Z57: M 4 | AA57: M5 | AB57: M6
A58: Prid (neto za LC v analitični) | H58: 5 | I58: =+I56 -> Pšenica | J58: Intenzivnost pridelave | K58: Kg/ha | M58: =O58-#REF! ->  | O58: 6000 | Q58: 7000 | R58: 6500 | S58: 6000 | T58: 5500 | U58: 5000 | V58: 6000 | X58: =Q58/$S58*100 -> 116.6666667 | Y58: =R58/$S58*100 -> 108.3333333 | Z58: =T58/$S58*100 -> 91.66666667 | AA58: =U58/$S58*100 -> 83.33333333 | AB58: 100
A59: str1_kg | H59: 6 | I59: =+I56 -> Pšenica | J59: Stranski pridelki | K59: Kg/ha | O59: 3000 | Q59: 3500 | R59: 3250 | S59: 3000 | T59: 2750 | U59: 2500 | V59: 3000 | X59: =Q59/$S59*100 -> 116.6666667 | Y59: 108.3333333 | Z59: =T59/$S59*100 -> 91.66666667 | AA59: 83.33333333 | AB59: 100
A60: vel parcele | H60: 7 | I60: =+I57 -> Pšenica | J60: Velikost parcele | K60: ha | O60: 1 | Q60: 1 | R60: 1 | S60: 1 | T60: 1 | U60: 1 | V60: 5 | X60: =Q60/$S60*100 -> 100 | Y60: =R60/$S60*100 -> 100 | Z60: =T60/$S60*100 -> 100 | AA60: =U60/$S60*100 -> 100 | AB60: =V60/$S60*100 -> 500
A61: Kupljen material in storitve | H61: 8 | I61: =+I58 -> Pšenica | J61: Kupljen material in storitve | K61: EUR/ha | O61: 1195.122046 | Q61: 1345.702957 | R61: 1279.307251 | S61: 1195.122046 | T61: 1139.88768 | U61: 1082.78454 | V61: 1168.338815 | X61: 112.5996262 | Y61: 107.0440676 | Z61: 95.37834929 | AA61: 90.6003319 | AB61: 97.75895434
A62: STROŠKI SKUPAJ | H62: 9 | I62: =+I60 -> Pšenica | J62: Stroški skupaj | K62: EUR/ha | O62: 1660.218749 | Q62: 1848.229814 | R62: 1771.20167 | S62: 1660.218749 | T62: 1589.655862 | U62: 1511.358356 | V62: 1580.760042 | X62: 111.3244755 | Y62: 106.6848373 | Z62: 95.7497838 | AA62: 91.03368799 | AB62: 95.21396163
A63: Stranski pridelki | H63: 10 | I63: Pšenica | J63: Stranski pridelki | K63: EUR/ha | O63: 285.7189948 | Q63: 329.4790916 | R63: 307.5990432 | S63: 285.7189948 | T63: 256.1194751 | U63: 234.2394267 | V63: 285.7189948 | X63: 115.3157815 | Y63: 107.6578907 | Z63: 89.64033887 | AA63: 81.98244813 | AB63: 100
H64: 11 | I64: Pšenica | J64: Stroški glavnega pridelka | K64: EUR/ha | O64: =+O62-O63 -> 1374.499754 | Q64: =+Q62-Q63 -> 1518.750723 | R64: 1463.602627 | S64: 1374.499754 | T64: 1333.536387 | U64: 1277.118929 | V64: 1295.041048 | X64: 110.4947977 | Y64: 106.4825674 | Z64: 97.01976181 | AA64: 92.91518061 | AB64: 94.21908181
A65: reg+prem+dod1 | B65: reg+prem+dod5 | C65: reg+prem+dod3 | D65: reg+prem+dod4 | E65: reg+prem+dod5 | H65: 12 | I65: Pšenica | J65: Subvencije | K65: EUR/ha | O65: 389.1029806 | Q65: 390.943819 | R65: 390.6019896 | S65: 389.1029806 | T65: 388.2725567 | U65: 387.0999623 | V65: 385.8147024 | X65: 100.473098 | Y65: 100.3852474 | Z65: 99.78657992 | AA65: 99.48522156 | AB65: 99.154908
H66: 13 | I66: Pšenica | J66: Stroški, zmanjšani za subvencije | K66: EUR/ha | O66: =+O64-O65 -> 985.3967733 | Q66: =+Q64-Q65 -> 1127.806904 | R66: 1073.000637 | S66: 985.3967733 | T66: 945.2638306 | U66: 890.0189665 | V66: 909.2263452 | X66: 114.4520598 | Y66: 108.8902122 | Z66: 95.92723015 | AA66: 90.32087283 | AB66: 92.27007535
H67: 14 | I67: Pšenica | J67: Stroški, zmanjšani za subvencije/kg | K67: EUR/kg | O67: =+O66/O58 -> 0.1642327955 | Q67: =+Q66/Q58 -> 0.161115272 | R67: 0.1650770211 | S67: 0.1642327955 | T67: 0.171866151 | U67: 0.1780037933 | V67: 0.1515377242 | X67: 98.10176551 | Y67: 100.514042 | Z67: 104.6478874 | AA67: 108.3850474 | AB67: 92.27007535
A68: davek_a | H68: 15 | J68: =+A68 -> davek_a | O68: 38.46498616 | Q68: 36.32861837 | R68: 37.01026147 | S68: 38.46498616 | T68: 39.371074 | U68: 40.60418873 | V68: 40.67978835 | X68: 94.44594161 | Y68: 96.21805481 | Z68: 102.3556172 | AA68: 105.5614281 | AB68: 105.7579695
A69: Pokoj obvezno | H69: 16 | J69: Pokoj obvezno | O69: 25.2491248 | Q69: 27.87775209 | R69: 27.05471018 | S69: 25.2491248 | T69: 24.13975295 | U69: 22.62108871 | V69: 22.41736188 | X69: 110.4107659 | Y69: 107.151081 | Z69: 95.6062958 | AA69: 89.59157549 | AB69: 88.7847086
A70: Zdrav obvezno | H70: 17 | J70: Zdrav obvezno | O70: 11.54943838 | Q70: 12.75182337 | R70: 12.37534808 | S70: 11.54943838 | T70: 11.04199022 | U70: 10.3473238 | V70: 10.25413521 | X70: 110.4107659 | Y70: 107.151081 | Z70: 95.6062958 | AA70: 89.59157549 | AB70: 88.7847086 | AF70: Slika 1: Cenovne meje doseganja paritetnega dohodka - PŠENICA,
A71: Pokoj dodatno | H71: 18 | J71: Pokoj dodatno | O71: 19.07058432 | Q71: 21.05597821 | R71: 20.43433726 | S71: 19.07058432 | T71: 18.23267925 | U71: 17.08563694 | V71: 16.93176271 | X71: 110.4107659 | Y71: 107.151081 | Z71: 95.6062958 | AA71: 89.59157549 | AB71: 88.7847086 | AF71: ="letina "&M52&", upoštevani stroški zmanjšani za subvencije" -> letina , upoštevani stroški zmanjšani za subvencije
A72: Zdrav dodatno | H72: 19 | J72: Zdrav dodatno | O72: 8.723254375 | Q72: 9.63141197 | R72: 9.347061365 | S72: 8.723254375 | T72: 8.339980381 | U72: 7.815301028 | V72: 7.744915977 | X72: 110.4107659 | Y72: 107.151081 | Z72: 95.6062958 | AA72: 89.59157549 | AB72: 88.7847086
A73: Regresi | H73: 20 | J73: Regresi | O73: 55.60269953 | Q73: 61.39136644 | R73: 59.57889364 | S73: 55.60269953 | T73: 53.15968139 | U73: 49.81533453 | V73: 49.36669475 | X73: 110.4107659 | Y73: 107.151081 | Z73: 95.6062958 | AA73: 89.59157549 | AB73: 88.7847086
A74: SUM element | H74: 21 | J74: SUM element | O74: 1660.218749 | Q74: 1848.229814 | R74: 1771.20167 | S74: 1660.218749 | T74: 1589.655862 | U74: 1511.358356 | V74: 1580.760042 | X74: 111.3244755 | Y74: 106.6848373 | Z74: 95.7497838 | AA74: 91.03368799 | AB74: 95.21396163
A75: reg+prem+dod1 | B75: reg+prem+dod5 | C75: reg+prem+dod3 | D75: reg+prem+dod4 | E75: reg+prem+dod5 | H75: 22 | J75: Subvencije | O75: 389.1029806 | Q75: 390.943819 | R75: 390.6019896 | S75: 389.1029806 | T75: 388.2725567 | U75: 387.0999623 | V75: 385.8147024 | X75: 100.473098 | Y75: 100.3852474 | Z75: 99.78657992 | AA75: 99.48522156 | AB75: 99.154908
A76: vred glav prid | H76: 23 | J76: Vrednost pridelave_tržna | K76: glavni in stranski | O76: 1098 | Q76: 1281 | R76: 1189.5 | S76: 1098 | T76: 1006.5 | U76: 915 | V76: 1098
H77: 24 | O77: =+O62-O75-O76 -> 173.115768 | P77: stroški vsi | Q77: =+Q62-Q75-Q63 -> 1127.806904 | R77: =+R62-R75-R63 -> 1073.000637 | S77: 985.3967733 | T77: 945.2638306 | U77: 890.0189665 | V77: 909.2263452
H78: 25 | O78: =O77-O69-O70 -> 136.3172049 | P78: stroški-obv dajatve | Q78: =Q77-Q69-Q70 -> 1087.177328 | R78: 1033.570579 | S78: 948.5982101 | T78: 910.0820874 | U78: 857.050554 | V78: 876.5548481
H79: 26 | O79: =O78-O71-O72-O73 -> 52.92066664 | P79: stroški-vse dajatve | Q79: =Q78-Q71-Q72-Q73 -> 995.0985717 | R79: 944.2102869 | S79: 865.2016719 | T79: 830.3497464 | U79: 782.3342815 | V79: 802.5114746
H80: 27
H81: 28 | O81: =+O58&";"&O60 -> 6000;1 | Q81: =Q58&";"&Q60 -> 7000;1 | R81: =+R58&";"&R60 -> 6500;1 | S81: 6000;1 | T81: 5500;1 | U81: 5000;1 | V81: 6000;5
H82: 29 | O82: =+O77/O58*1000 -> 28.85262801 | P82: Polne dajatve in pravice iz dela | Q82: =+Q77/Q58*1000 -> 161.115272 | R82: 165.0770211 | S82: 164.2327955 | T82: 171.866151 | U82: 178.0037933 | V82: 151.5377242
H83: 30 | O83: =+O82*O78/O77 -> 22.71953414 | P83: Minimalne obveznosti iz dela | Q83: =+Q82*Q78/Q77 -> 155.3110469 | R83: 159.0108583 | S83: 158.0997017 | T83: 165.4694704 | U83: 171.4101108 | V83: 146.0924747
H84: 31 | O84: =+O82*O79/O77 -> 8.820111107 | P84: Brez dajatev in pravic iz dela | Q84: =+Q82*Q79/Q77 -> 142.1569388 | R84: 145.2631211 | S84: 144.2002786 | T84: 150.9726812 | U84: 156.4668563 | V84: 133.7519124
H85: 32 | O85: =+O82-O84 -> 20.0325169 | P85: sivo | Q85: =+Q82-Q84 -> 18.95833315 | R85: 19.81390008 | S85: 20.0325169 | T85: 20.89346985 | U85: 21.536937 | V85: 17.78581176
H86: 33 | AF86: Slika 2: Kazalniki modelne ocene dohodka - PŠENICA,
A87: Pc | F87: 1000 | H87: 34 | J87: Odkupna cena; vir podatkov SURS; preračuni KIS | O87: 183 | P87: =J87 -> Odkupna cena; vir podatkov SURS; preračuni KIS | Q87: 183 | R87: 183 | S87: 183 | T87: 183 | U87: 183 | V87: 183 | AF87: ="letina "&M52 -> letina
H88: 35 | J88: Bruto dodana vrednost | O88: =O76+O75+O63-O61 -> 577.6999292 | Q88: =Q76+Q75+Q63-Q61 -> 655.7199535 | R88: 608.3937819 | S88: 577.6999292 | T88: 511.0043522 | U88: 453.5548486 | V88: 601.1948818
A89: Amortizacija | H89: =H88+1 -> 36 | J89: Amortizacija | O89: 113.7190883 | Q89: 122.0367936 | R89: 120.3458817 | S89: 113.7190883 | T89: 110.5760668 | U89: 105.8232671 | V89: 94.83005647
H90: 37 | J90: Neto dodana vrednost | O90: =+O88-O89 -> 463.980841 | Q90: =+Q88-Q89 -> 533.6831599 | R90: =+R88-R89 -> 488.0479002 | S90: 463.980841 | T90: 400.4282854 | U90: 347.7315815 | V90: 506.3648253
H91: =1 -> 1 | I91: =+J93 -> Ječmen tržni | J91: KMETIJSKI INŠTITUT SLOVENIJE | O91: =O99-O111+O104-'2021'!L64 -> -2.273736754e-13 | Q91: =Q99-Q111+Q104-'2021'!O64 -> 2.273736754e-13 | R91: =R99-R111+R104-'2021'!P64 -> 0 | S91: =S99-S111+S104-'2021'!Q64 -> -2.273736754e-13 | T91: =T99-T111+T104-'2021'!R64 -> 2.273736754e-13 | U91: =U99-U111+U104-'2021'!S64 -> 0 | V91: =V99-V111+V104-'2021'!T64 -> -2.273736754e-13
H92: =H91+1 -> 2 | I92: =+I91 -> Ječmen tržni | J92: Oddelek za ekonomiko kmetijstva | O92: =#REF! ->  | Q92: =#REF! ->  | R92: =#REF! ->  | S92: =#REF! ->  | T92: =#REF! ->  | U92: =#REF! ->  | V92: =#REF! -> 
F93: =#REF! ->  | H93: =H92+1 -> 3 | I93: =+I92 -> Ječmen tržni | J93: Ječmen tržni | K93: =+K$56 -> Enota | S93: =+$S$56 ->  | X93: Indeks: M 3 =100
H94: 4 | I94: =+I93 -> Ječmen tržni | J94: =+J57 -> Model | Q94: M 1 | R94: M 2 | S94: M 3 | T94: M 4 | U94: M5 | V94: M6 | X94: =+Q94 -> M 1 | Y94: =+R94 -> M 2 | Z94: =+T94 -> M 4 | AA94: =+U94 -> M5 | AB94: M6
A95: Prid (neto za LC v analitični) | H95: 5 | I95: =+I94 -> Ječmen tržni | J95: =+J58 -> Intenzivnost pridelave | K95: Kg/ha | O95: 5500 | Q95: 6500 | R95: 6000 | S95: 5500 | T95: 5000 | U95: 4500 | V95: 5500 | X95: =Q95/$S95*100 -> 118.1818182 | Y95: =R95/$S95*100 -> 109.0909091 | Z95: =T95/$S95*100 -> 90.90909091 | AA95: 81.81818182 | AB95: 100
A96: str1_kg | H96: 6 | J96: Stranski pridelki | K96: Kg/ha | O96: 2750 | Q96: 3250 | R96: 3000 | S96: 2750 | T96: 2500 | U96: 2250 | V96: 2750 | X96: =Q96/$S96*100 -> 118.1818182 | Y96: =R96/$S96*100 -> 109.0909091 | Z96: 90.90909091 | AA96: 81.81818182 | AB96: 100
A97: vel parcele | H97: 7 | I97: =+I95 -> Ječmen tržni | J97: Velikost parcele | K97: ha | O97: 1 | Q97: 1 | R97: 1 | S97: 1 | T97: 1 | U97: 1 | V97: 5 | X97: =Q97/$S97*100 -> 100 | Y97: =R97/$S97*100 -> 100 | Z97: =T97/$S97*100 -> 100 | AA97: 100 | AB97: 500
A98: Kupljen material in storitve | H98: 8 | I98: =+I93 -> Ječmen tržni | J98: Kupljen material in storitve | O98: 1062.589458 | Q98: 1175.561452 | R98: 1120.19283 | S98: 1062.589458 | T98: 1013.336571 | U98: 951.1202595 | V98: 982.2100392 | X98: 110.6317631 | Y98: 105.4210374 | Z98: 95.36482446 | AA98: 89.50966458 | AB98: 92.43551514
A99: STROŠKI SKUPAJ | H99: 9 | I99: =+I98 -> Ječmen tržni | J99: Stroški skupaj | K99: =+K$62 -> EUR/ha | O99: 1534.0612 | Q99: 1699.693633 | R99: 1617.710432 | S99: 1534.0612 | T99: 1474.138357 | U99: 1382.183381 | V99: 1349.800624 | X99: 110.7969899 | Y99: 105.4527963 | Z99: 96.09384274 | AA99: 90.09962452 | AB99: 87.98870759
A100: Stranski pridelki | H100: 10 | I100: Ječmen tržni | J100: Stranski pridelki | K100: =+K$63 -> EUR/ha | O100: 256.1194751 | Q100: 307.5990432 | R100: 285.7189948 | S100: 256.1194751 | T100: 234.2394267 | U100: 212.3593783 | V100: 264.3713716 | X100: 120.0998257 | Y100: 111.5569188 | Z100: 91.45709306 | AA100: 82.91418611 | AB100: 103.2218934
H101: 11 | I101: Ječmen tržni | J101: Stroški glavnega pridelka | K101: =+K$64 -> EUR/ha | O101: =+O99-O100 -> 1277.941725 | Q101: =+Q99-Q100 -> 1392.09459 | R101: =+R99-R100 -> 1331.991438 | S101: 1277.941725 | T101: 1239.898931 | U101: 1169.824003 | V101: 1085.429252 | X101: 108.9325564 | Y101: 104.2294348 | Z101: 97.02311977 | AA101: 91.53969856 | AB101: 84.93573931
A102: reg+prem+dod1 | B102: reg+prem+dod5 | C102: reg+prem+dod3 | D102: reg+prem+dod4 | E102: reg+prem+dod5 | H102: 12 | I102: Ječmen tržni | J102: Subvencije | K102: =+K$65 -> EUR/ha | O102: 389.6655017 | Q102: 392.8410443 | R102: 391.3379623 | S102: 389.6655017 | T102: 389.3124004 | U102: 387.0049214 | V102: 380.7727222 | X102: 100.8149407 | Y102: 100.4292042 | Z102: 99.9093835 | AA102: 99.3172143 | AB102: 97.71784276
C103: delo | H103: 13 | I103: Ječmen tržni | J103: Stroški, zmanjšani za subvencije | K103: =+K$66 -> EUR/ha | O103: =+O101-O102 -> 888.2762234 | Q103: =+Q101-Q102 -> 999.253546 | R103: =+R101-R102 -> 940.6534753 | S103: 888.2762234 | T103: 850.5865302 | U103: 782.8190816 | V103: 704.6565299 | X103: 112.49356 | Y103: 105.896505 | Z103: 95.75698502 | AA103: 88.12788871 | AB103: 79.3285367
H104: 14 | I104: Ječmen tržni | J104: Stroški, zmanjšani za subvencije/kg | K104: =+K$67 -> EUR/kg | O104: =+O103/O95 -> 0.1615047679 | Q104: =+Q103/Q95 -> 0.1537313148 | R104: =+R103/R95 -> 0.1567755792 | S104: 0.1615047679 | T104: 0.170117306 | U104: 0.1739597959 | V104: 0.1281193691 | X104: 95.18685842 | Y104: 97.07179624 | Z104: 105.3326835 | AA104: 107.711864 | AB104: 79.3285367
A105: davek_a | H105: 15 | J105: davek_a | O105: 38.43939268 | Q105: 35.51692245 | R105: 36.97435086 | S105: 38.43939268 | T105: 39.12851813 | U105: 40.71542254 | V105: 45.36949416 | X105: 92.39719978 | Y105: 96.18869677 | Z105: 101.7927584 | AA105: 105.921087 | AB105: 118.0286446
A106: Pokoj obvezno | H106: 16 | J106: Pokoj obvezno | O106: 25.32613791 | Q106: 28.9495661 | R106: 27.14057027 | S106: 25.32613791 | T106: 24.49365782 | U106: 22.51585793 | V106: 16.63957347 | X106: 114.3070697 | Y106: 107.1642679 | Z106: 96.71296077 | AA106: 88.90363788 | AB106: 65.70118798
A107: Zdrav obvezno | H107: 17 | J107: Zdrav obvezno | O107: 11.58466566 | Q107: 13.24209185 | R107: 12.41462214 | S107: 11.58466566 | T107: 11.20387316 | U107: 10.29918921 | V107: 7.611262964 | X107: 114.3070697 | Y107: 107.1642679 | Z107: 96.71296077 | AA107: 88.90363788 | AB107: 65.70118798
A108: Pokoj dodatno | H108: 18 | J108: Pokoj dodatno | O108: 19.12875207 | Q108: 21.86551596 | R108: 20.49918711 | S108: 19.12875207 | T108: 18.49998249 | U108: 17.00615647 | V108: 12.56781736 | X108: 114.3070697 | Y108: 107.1642679 | Z108: 96.71296077 | AA108: 88.90363788 | AB108: 65.70118798 | AF108: Slika 1: Cenovne meje doseganja paritetnega dohodka - JEČMEN - tržni,
A109: Zdrav dodatno | H109: 19 | J109: Zdrav dodatno | O109: 8.749861431 | Q109: 10.0017102 | R109: 9.376724944 | S109: 8.749861431 | T109: 8.462250053 | U109: 7.778945122 | V109: 5.748762907 | X109: 114.3070697 | Y109: 107.1642679 | Z109: 96.71296077 | AA109: 88.90363788 | AB109: 65.70118798 | AF109: ="letina "&M90&", upoštevani stroški zmanjšani za subvencije" -> letina , upoštevani stroški zmanjšani za subvencije
A110: Regresi | H110: 20 | J110: Regresi | O110: 55.77229497 | Q110: 63.75167608 | R110: 59.76797159 | S110: 55.77229497 | T110: 53.93903776 | U110: 49.58359916 | V110: 36.64306036 | X110: 114.3070697 | Y110: 107.1642679 | Z110: 96.71296077 | AA110: 88.90363788 | AB110: 65.70118798
A111: SUM element | H111: 21 | J111: SUM element | O111: 1534.0612 | Q111: 1699.693633 | R111: 1617.710432 | S111: 1534.0612 | T111: 1474.138357 | U111: 1382.183381 | V111: 1349.800624 | X111: 110.7969899 | Y111: 105.4527963 | Z111: 96.09384274 | AA111: 90.09962452 | AB111: 87.98870759
A112: reg+prem+dod1 | B112: reg+prem+dod5 | C112: reg+prem+dod3 | D112: reg+prem+dod4 | E112: reg+prem+dod5 | H112: 22 | J112: =+J75 -> Subvencije | O112: 389.6655017 | Q112: 392.8410443 | R112: 391.3379623 | S112: 389.6655017 | T112: 389.3124004 | U112: 387.0049214 | V112: 380.7727222 | X112: 100.8149407 | Y112: 100.4292042 | Z112: 99.9093835 | AA112: 99.3172143 | AB112: 97.71784276
A113: vred glav prid | H113: 23 | J113: =+J76 -> Vrednost pridelave_tržna | K113: glavni in stranski | O113: 907.5 | Q113: 1072.5 | R113: 990 | S113: 907.5 | T113: 825 | U113: 742.5 | V113: 907.5 | X113: 118.1818182 | Y113: 109.0909091 | Z113: 90.90909091 | AA113: 81.81818182 | AB113: 100
H114: 24 | O114: =+O99-O112-O100 -> 888.2762234 | P114: stroški vsi | Q114: =+Q99-Q112-Q100 -> 999.253546 | R114: =+R99-R112-R100 -> 940.6534753 | S114: 888.2762234 | T114: 850.5865302 | U114: 782.8190816 | V114: 704.6565299
H115: 25 | O115: =O114-O106-O107 -> 851.3654199 | P115: stroški-obv dajatve | Q115: =Q114-Q106-Q107 -> 957.061888 | R115: =R114-R106-R107 -> 901.0982829 | S115: 851.3654199 | T115: 814.8889992 | U115: 750.0040345 | V115: 680.4056935
H116: 26 | O116: =O115-O108-O109-O110 -> 767.7145114 | P116: stroški-vse dajatve | Q116: =Q115-Q108-Q109-Q110 -> 861.4429858 | R116: =R115-R108-R109-R110 -> 811.4543992 | S116: 767.7145114 | T116: 733.9877289 | U116: 675.6353337 | V116: 625.4460529
H117: 27
H118: 28 | O118: =+O95&";"&O97 -> 5500;1 | Q118: =+Q95&";"&Q97 -> 6500;1 | R118: =+R95&";"&R97 -> 6000;1 | S118: 5500;1 | T118: 5000;1 | U118: 4500;1 | V118: 5500;5
H119: 29 | O119: =+O114/O95*1000 -> 161.5047679 | P119: Polne dajatve in pravice iz dela | Q119: =+Q114/Q95*1000 -> 153.7313148 | R119: =+R114/R95*1000 -> 156.7755792 | S119: 161.5047679 | T119: 170.117306 | U119: 173.9597959 | V119: 128.1193691
H120: 30 | O120: =+O119*O115/O114 -> 154.7937127 | P120: Minimalne obveznosti iz dela | Q120: =+Q119*Q115/Q114 -> 147.2402905 | R120: =+R119*R115/R114 -> 150.1830471 | S120: 154.7937127 | T120: 162.9777998 | U120: 166.6675632 | V120: 123.7101261
H121: 31 | O121: =+O119*O116/O114 -> 139.5844566 | P121: Brez dajatev in pravic iz dela | Q121: =+Q119*Q116/Q114 -> 132.5296901 | R121: =+R119*R116/R114 -> 135.2423999 | S121: 139.5844566 | T121: 146.7975458 | U121: 150.1411853 | V121: 113.7174642
H122: 32 | O122: =+O119-O121 -> 21.92031128 | P122: sivo | Q122: =+Q119-Q121 -> 21.20162465 | R122: =+R119-R121 -> 21.53317934 | S122: 21.92031128 | T122: 23.31976025 | U122: 23.81861064 | V122: 14.40190492
H123: 33
A124: Pc | F124: 1000 | H124: 34 | J124: Odkupna cena; vir podatkov SURS; preračuni KIS | O124: 165 | P124: =J124 -> Odkupna cena; vir podatkov SURS; preračuni KIS | Q124: 165 | R124: 165 | S124: 165 | T124: 165 | U124: 165 | V124: 165 | AF124: Slika 2: Kazalniki modelne ocene dohodka - JEČMEN - tržni,
H125: 35 | J125: =+J88 -> Bruto dodana vrednost | O125: =O113+O112+O100-O98 -> 490.695519 | Q125: =Q113+Q112+Q100-Q98 -> 597.378636 | R125: 546.8641275 | S125: 490.695519 | T125: 435.215256 | U125: 390.7440401 | V125: 570.4340546 | AF125: ="letina "&M90 -> letina
A126: Amortizacija | H126: 36 | J126: Amortizacija | O126: 116.0476605 | Q126: 128.8099185 | R126: 122.2311134 | S126: 116.0476605 | T126: 114.3782051 | U126: 106.900311 | V126: 103.7716379
H127: 37 | J127: Neto dodana vrednost | O127: =+O125-O126 -> 374.6478585 | Q127: =+Q125-Q126 -> 468.5687175 | R127: =+R125-R126 -> 424.633014 | S127: =+S125-S126 -> 374.6478585 | T127: =+T125-T126 -> 320.8370509 | U127: =+U125-U126 -> 283.8437291 | V127: =+V125-V126 -> 466.6624168
H128: =1 -> 1 | I128: =+J130 -> Oljna ogrščica | J128: KMETIJSKI INŠTITUT SLOVENIJE | O128: =O136-O148+O141-'2021'!L102 -> 4.547473509e-13 | Q128: =Q136-Q148+Q141-'2021'!O102 -> 0 | R128: =R136-R148+R141-'2021'!P102 -> 4.547473509e-13 | S128: =S136-S148+S141-'2021'!Q102 -> -2.273736754e-13 | T128: =T136-T148+T141-'2021'!R102 -> -4.547473509e-13 | U128: =U136-U148+U141-'2021'!S102 -> -6.821210263e-13 | V128: =V136-V148+V141-'2021'!T102 -> 0
H129: =H128+1 -> 2 | I129: =+I128 -> Oljna ogrščica | J129: Oddelek za ekonomiko kmetijstva | O129: =#REF! ->  | Q129: =#REF! ->  | R129: =#REF! ->  | S129: =#REF! ->  | T129: =#REF! ->  | U129: =#REF! ->  | V129: =#REF! -> 
F130: =#REF! ->  | H130: =H129+1 -> 3 | I130: =+I129 -> Oljna ogrščica | J130: Oljna ogrščica | K130: =+K$56 -> Enota | X130: Indeks: M 2 =100
H131: 4 | I131: =+I130 -> Oljna ogrščica | J131: =+J94 -> Model | Q131: M 1 | R131: M 2 | S131: M 3 | T131: M 4 | U131: M5 | V131: M6 | X131: =+Q131 -> M 1 | Y131: =+R131 -> M 2 | Z131: =+T131 -> M 4 | AA131: =+U131 -> M5 | AB131: =+V131 -> M6
A132: Prid (neto za LC v analitični) | H132: 5 | I132: =+I131 -> Oljna ogrščica | J132: =+J95 -> Intenzivnost pridelave | K132: Kg/ha | O132: 3500 | Q132: 4000 | R132: 3500 | S132: 3000 | T132: 2500 | U132: 3000 | V132: 3500 | X132: =Q132/$S132*100 -> 133.3333333 | Y132: =R132/$S132*100 -> 116.6666667 | Z132: =T132/$S132*100 -> 83.33333333 | AA132: =U132/$S132*100 -> 100 | AB132: =V132/$S132*100 -> 116.6666667
A133: str1_kg | H133: 6 | J133: Stranski pridelki | X133: =Q133/$S133*100 ->  | Y133: =R133/$S133*100 ->  | Z133: =T133/$S133*100 ->  | AA133: =U133/$S133*100 ->  | AB133: =V133/$S133*100 -> 
A134: vel parcele | H134: 7 | I134: =+I132 -> Oljna ogrščica | J134: Velikost parcele | K134: ha | O134: 1 | Q134: 1 | R134: 1 | S134: 1 | T134: 1 | U134: 5 | V134: 5 | X134: 100 | Y134: 100 | Z134: 100 | AA134: 500 | AB134: 500
A135: Kupljen material in storitve | H135: 8 | I135: =+I130 -> Oljna ogrščica | J135: Kupljen material in storitve | O135: 1064.962809 | Q135: 1145.905201 | R135: 1064.962809 | S135: 978.8234375 | T135: 883.9156035 | U135: 948.5485391 | V135: 1033.882433 | X135: 117.0696529 | Y135: 108.8002972 | Z135: 90.30388624 | AA135: 96.90701129 | AB135: 105.6250181
A136: STROŠKI SKUPAJ | H136: 9 | I136: =+I135 -> Oljna ogrščica | J136: Stroški skupaj | K136: =+K$62 -> EUR/ha | O136: 1430.688507 | Q136: 1515.149356 | R136: 1430.688507 | S136: 1330.180289 | T136: 1215.469477 | U136: 1240.485259 | V136: 1338.477772 | X136: 113.9055636 | Y136: 107.5559846 | Z136: 91.37629592 | AA136: 93.25692688 | AB136: 100.6237863
A137: Stranski pridelki | H137: 10 | I137: Oljna ogrščica | J137: Stranski pridelki | K137: =+K$63 -> EUR/ha | O137: 0 | Q137: 0 | R137: 0 | S137: 0 | T137: 0 | U137: 0 | V137: 0
H138: 11 | I138: Oljna ogrščica | J138: Stroški glavnega pridelka | K138: =+K$64 -> EUR/ha | O138: =+O136-O137 -> 1430.688507 | Q138: =+Q136-Q137 -> 1515.149356 | R138: =+R136-R137 -> 1430.688507 | S138: 1330.180289 | T138: 1215.469477 | U138: 1240.485259 | V138: 1338.477772 | X138: 113.9055636 | Y138: 107.5559846 | Z138: 91.37629592 | AA138: 93.25692688 | AB138: 100.6237863
A139: reg+prem+dod1 | B139: reg+prem+dod5 | C139: reg+prem+dod3 | D139: reg+prem+dod4 | E139: reg+prem+dod5 | H139: 12 | I139: Oljna ogrščica | J139: Subvencije | K139: =+K$65 -> EUR/ha | O139: 274.2771829 | Q139: 274.4197553 | R139: 274.2771829 | S139: 273.3038457 | T139: 272.0040937 | U139: 269.5426105 | V139: 270.3849866 | X139: 100.4083037 | Y139: 100.3561374 | Z139: 99.52442969 | AA139: 98.62378988 | AB139: 98.93200952
C140: delo | H140: 13 | I140: Oljna ogrščica | J140: Stroški, zmanjšani za subvencije | K140: =+K$66 -> EUR/ha | O140: =+O138-O139 -> 1156.411324 | Q140: =+Q138-Q139 -> 1240.7296 | R140: =+R138-R139 -> 1156.411324 | S140: 1056.876443 | T140: 943.4653835 | U140: 970.942649 | V140: 1068.092785 | X140: 117.3958988 | Y140: 109.4178351 | Z140: 89.26922247 | AA140: 91.86907846 | AB140: 101.0612728
H141: 14 | I141: Oljna ogrščica | J141: Stroški, zmanjšani za subvencije/kg | K141: =+K$67 -> EUR/kg | O141: =+O140/O132 -> 0.3304032354 | Q141: =+Q140/Q132 -> 0.3101824001 | R141: =+R140/R132 -> 0.3304032354 | S141: 0.3522921478 | T141: 0.3773861534 | U141: 0.3236475497 | V141: 0.3051693672 | X141: 88.04692414 | Y141: 93.78671579 | Z141: 107.123067 | AA141: 91.86907846 | AB141: 86.62394809
A142: davek_a | H142: 15 | J142: davek_a | O142: 27.16546012 | Q142: 27.07081888 | R142: 27.16546012 | S142: 27.81157299 | T142: 28.67929584 | U142: 30.34281698 | V142: 29.78363767 | X142: 97.33652563 | Y142: 97.6768201 | Z142: 103.1200063 | AA142: 109.1014053 | AB142: 107.090806
A143: Pokoj obvezno | H143: 16 | J143: Pokoj obvezno | O143: 17.33712759 | Q143: 17.45650737 | R143: 17.33712759 | S143: 16.52212547 | T143: 15.42020222 | U143: 13.28743775 | V143: 13.99278249 | X143: 105.6553372 | Y143: 104.9327922 | Z143: 93.33062047 | AA143: 80.42208474 | AB143: 84.69117675
A144: Zdrav obvezno | H144: 17 | J144: Zdrav obvezno | O144: 7.930337715 | Q144: 7.98494434 | R144: 7.930337715 | S144: 7.557539974 | T144: 7.053498949 | U144: 6.077931202 | V144: 6.400569537 | X144: 105.6553372 | Y144: 104.9327922 | Z144: 93.33062047 | AA144: 80.42208474 | AB144: 84.69117675
A145: Pokoj dodatno | H145: 18 | J145: Pokoj dodatno | O145: 13.09467778 | Q145: 13.18484495 | R145: 13.09467778 | S145: 12.47910925 | T145: 11.64683009 | U145: 10.03595982 | V145: 10.56870447 | X145: 105.6553372 | Y145: 104.9327922 | Z145: 93.33062047 | AA145: 80.42208474 | AB145: 84.69117675
A146: Zdrav dodatno | H146: 19 | J146: Zdrav dodatno | O146: 5.989759061 | Q146: 6.031003272 | R146: 5.989759061 | S146: 5.708186102 | T146: 5.327485507 | U146: 4.590642264 | V146: 4.834329981 | X146: 105.6553372 | Y146: 104.9327922 | Z146: 93.33062047 | AA146: 80.42208474 | AB146: 84.69117675 | AF146: Slika 1: Cenovne meje doseganja paritetnega dohodka - OLJNA OGRŠČICA,
A147: Regresi | H147: 20 | J147: Regresi | O147: 38.17918852 | Q147: 38.44208232 | R147: 38.17918852 | S147: 36.38442066 | T147: 33.95780556 | U147: 29.26110962 | V147: 30.81439401 | X147: 105.6553372 | Y147: 104.9327922 | Z147: 93.33062047 | AA147: 80.42208474 | AB147: 84.69117675 | AF147: ="letina "&M128&", upoštevani stroški zmanjšani za subvencije" -> letina , upoštevani stroški zmanjšani za subvencije
A148: SUM element | H148: 21 | J148: SUM element | O148: 1430.688507 | Q148: 1515.149356 | R148: 1430.688507 | S148: 1330.180289 | T148: 1215.469477 | U148: 1240.485259 | V148: 1338.477772 | X148: 113.9055636 | Y148: 107.5559846 | Z148: 91.37629592 | AA148: 93.25692688 | AB148: 100.6237863
A149: reg+prem+dod1 | B149: reg+prem+dod5 | C149: reg+prem+dod3 | D149: reg+prem+dod4 | E149: reg+prem+dod5 | H149: 22 | J149: Subvencije | O149: 274.2771829 | Q149: 274.4197553 | R149: 274.2771829 | S149: 273.3038457 | T149: 272.0040937 | U149: 269.5426105 | V149: 270.3849866 | X149: 100.4083037 | Y149: 100.3561374 | Z149: 99.52442969 | AA149: 98.62378988 | AB149: 98.93200952
A150: vred glav prid | H150: 23 | J150: =+J113 -> Vrednost pridelave_tržna | K150: glavni in stranski | O150: 1582 | Q150: 1808 | R150: 1582 | S150: 1356 | T150: 1130 | U150: 1356 | V150: 1582 | X150: 133.3333333 | Y150: 116.6666667 | Z150: 83.33333333 | AA150: 100 | AB150: 116.6666667
H151: 24 | J151: 0 | O151: =+O136-O149-O137 -> 1156.411324 | P151: stroški vsi | Q151: =+Q136-Q149-Q137 -> 1240.7296 | R151: =+R136-R149-R137 -> 1156.411324 | S151: 1056.876443 | T151: 943.4653835 | U151: 970.942649 | V151: 1068.092785
H152: 25 | O152: =O151-O143-O144 -> 1131.143859 | P152: stroški-obv dajatve | Q152: =Q151-Q143-Q144 -> 1215.288149 | R152: =R151-R143-R144 -> 1131.143859 | S152: 1032.796778 | T152: 920.9916823 | U152: 951.57728 | V152: 1047.699433
H153: 26 | O153: =O152-O145-O146-O147 -> 1073.880233 | P153: stroški-vse dajatve | Q153: =Q152-Q145-Q146-Q147 -> 1157.630218 | R153: =R152-R145-R146-R147 -> 1073.880233 | S153: 978.2250619 | T153: 870.0595612 | U153: 907.6895683 | V153: 1001.482005
H154: 27
H155: 28 | O155: =+O132&";"&O134 -> 3500;1 | Q155: =+Q132&";"&Q134 -> 4000;1 | R155: =+R132&";"&R134 -> 3500;1 | S155: 3000;1 | T155: 2500;1 | U155: 3000;5 | V155: 3500;5
H156: 29 | O156: =+O151/O132*1000 -> 330.4032354 | P156: Polne dajatve in pravice iz dela | Q156: =+Q151/Q132*1000 -> 310.1824001 | R156: =+R151/R132*1000 -> 330.4032354 | S156: 352.2921478 | T156: 377.3861534 | U156: 323.6475497 | V156: 305.1693672
H157: 30 | O157: =+O156*O152/O151 -> 323.1839596 | P157: Minimalne obveznosti iz dela | Q157: =+Q156*Q152/Q151 -> 303.8220372 | R157: =+R156*R152/R151 -> 323.1839596 | S157: 344.2655926 | T157: 368.3966729 | U157: 317.1924267 | V157: 299.3426952
H158: 31 | O158: =+O156*O153/O151 -> 306.8229238 | P158: Brez dajatev in pravic iz dela | Q158: =+Q156*Q153/Q151 -> 289.4075545 | R158: =+R156*R153/R151 -> 306.8229238 | S158: 326.0750206 | T158: 348.0238245 | U158: 302.5631894 | V158: 286.1377157
H159: 32 | O159: =+O156-O158 -> 23.58031162 | P159: sivo | Q159: =+Q156-Q158 -> 20.77484556 | R159: =+R156-R158 -> 23.58031162 | S159: 26.21712715 | T159: 29.36232893 | U159: 21.08436022 | V159: 19.03165157
H160: 33
A161: Pc | F161: 1000 | H161: 34 | J161: Odkupna cena; vir podatkov SURS; preračuni KIS | O161: 452 | P161: =J161 -> Odkupna cena; vir podatkov SURS; preračuni KIS | Q161: 452 | R161: 452 | S161: 452 | T161: 452 | U161: 452 | V161: 452
H162: 35 | J162: =+J125 -> Bruto dodana vrednost | O162: =O150+O149+O137-O135 -> 791.3143738 | P162: =P150+P149-P135 -> 0 | Q162: =Q150+Q149+Q137-Q135 -> 936.5145545 | R162: 791.3143738 | S162: 650.4804082 | T162: 518.0884903 | U162: 676.9940714 | V162: 818.5025539 | AF162: Slika 2: Kazalniki modelne ocene dohodka - OLJNA OGRŠČICA,
A163: Amortizacija | H163: 36 | J163: Amortizacija | O163: 113.4627177 | Q163: 115.570186 | R163: 113.4627177 | S163: 108.2933616 | T163: 101.2500116 | U163: 87.30658674 | V163: 91.99326918 | AF163: ="letina "&M128 -> letina
H164: 37 | J164: Neto dodana vrednsot | O164: =+O162-O163 -> 677.8516561 | Q164: =+Q162-Q163 -> 820.9443685 | R164: =+R162-R163 -> 677.8516561 | S164: 542.1870466 | T164: 416.8384786 | U164: 589.6874846 | V164: 726.5092847
H165: =1 -> 1 | I165: =+J167 -> Koruza za zrnje | J165: KMETIJSKI INŠTITUT SLOVENIJE | O165: =O173-O185+O178-'2021'!L140 -> 0 | Q165: =Q173-Q185+Q178-'2021'!O140 -> 0 | R165: =R173-R185+R178-'2021'!P140 -> -2.273736754e-13 | S165: =S173-S185+S178-'2021'!Q140 -> 0 | T165: =T173-T185+T178-'2021'!R140 -> 4.547473509e-13 | U165: =U173-U185+U178-'2021'!S140 -> 0 | V165: =V173-V185+V178-'2021'!T140 -> 0
H166: =H165+1 -> 2 | I166: =+I165 -> Koruza za zrnje | J166: Oddelek za ekonomiko kmetijstva | O166: =#REF! ->  | Q166: koruzaB | R166: koruzaC | S166: koruzaA | T166: koruzaD | U166: koruzaE | V166: koruzaF
F167: =+#REF! ->  | H167: =H166+1 -> 3 | I167: =+I166 -> Koruza za zrnje | J167: Koruza za zrnje | K167: =+K$56 -> Enota | S167: =+$S$56 -> 
H168: 4 | I168: =+I167 -> Koruza za zrnje | J168: Model | Q168: M 1 | R168: M 2 | S168: M 3 | T168: M 4 | U168: M 5 | V168: M 6 | X168: Indeks: M 4 =100
A169: Prid (neto za LC v analitični) | H169: 5 | I169: =+I168 -> Koruza za zrnje | J169: Intenzivnost pridelave | K169: Kg/ha | O169: 10000 | Q169: 12000 | R169: 11000 | S169: 10000 | T169: 9000 | U169: 8000 | V169: 10000 | X169: M 1 | Y169: M 3 | Z169: M 4 | AA169: M5 | AB169: M6
A170: str1_kg | H170: 6
A171: vel parcele | H171: 7 | I171: =+I169 -> Koruza za zrnje | J171: Velikost poljine | K171: ha | O171: 1 | Q171: 1 | R171: 1 | S171: 1 | T171: 1 | U171: 1 | V171: 5 | X171: =Q171/$S171*100 -> 100 | Y171: =R171/$S171*100 -> 100 | Z171: 100 | AA171: 100 | AB171: 100
A172: Kupljen material in storitve | H172: 8 | I172: =+I171 -> Koruza za zrnje | J172: =+J$61 -> Kupljen material in storitve | O172: 1441.115121 | Q172: 1636.981455 | R172: 1533.122725 | S172: 1441.115121 | T172: 1348.090692 | U172: 1226.750912 | V172: 1411.242234 | X172: =Q172/$S172*100 -> 113.5913037 | Y172: 106.3844729 | Z172: 100 | AA172: 93.54496889 | AB172: 85.12511558
A173: STROŠKI SKUPAJ | H173: 9 | I173: Koruza za zrnje | J173: =+J$62 -> Stroški skupaj | K173: =+K$62 -> EUR/ha | O173: 1845.468951 | Q173: 2065.716578 | R173: 1940.228275 | S173: 1845.468951 | T173: 1749.654401 | U173: 1625.06872 | V173: 1753.700163 | X173: 111.9345073 | Y173: 105.1347016 | Z173: 100 | AA173: 94.80811908 | AB173: 88.05722357
A174: Stranski pridelki | H174: 10 | I174: Koruza za zrnje | J174: =+J$63 -> Stranski pridelki | K174: =+K$63 -> EUR/ha | O174: 0 | Q174: 0 | R174: 0 | S174: 0 | T174: 0 | U174: 0 | V174: 0
H175: 11 | I175: Koruza za zrnje | J175: =+J$64 -> Stroški glavnega pridelka | K175: =+K$64 -> EUR/ha | O175: =+O173-O174 -> 1845.468951 | Q175: =+Q173-Q174 -> 2065.716578 | R175: =+R173-R174 -> 1940.228275 | S175: 1845.468951 | T175: 1749.654401 | U175: 1625.06872 | V175: 1753.700163 | X175: 111.9345073 | Y175: 105.1347016 | Z175: 100 | AA175: 94.80811908 | AB175: 88.05722357
A176: reg+prem+dod1 | B176: reg+prem+dod5 | C176: reg+prem+dod3 | D176: reg+prem+dod4 | E176: reg+prem+dod5 | H176: 12 | I176: Koruza za zrnje | J176: =+J$65 -> Subvencije | K176: =+K$65 -> EUR/ha | O176: 276.6495416 | Q176: 278.7572214 | R176: 276.7262225 | S176: 276.6495416 | T176: 276.5728482 | U176: 276.4961547 | V176: 273.0479673 | X176: 100.7618591 | Y176: 100.0277177 | Z176: 100 | AA176: 99.97227776 | AB176: 99.94455551
C177: delo | H177: 13 | I177: Koruza za zrnje | J177: =+J$66 -> Stroški, zmanjšani za subvencije | K177: =+K$66 -> EUR/ha | O177: =+O175-O176 -> 1568.81941 | Q177: =+Q175-Q176 -> 1786.959356 | R177: =+R175-R176 -> 1663.502053 | S177: 1568.81941 | T177: 1473.081553 | U177: 1348.572566 | V177: 1480.652196 | X177: 113.90472 | Y177: 106.0352799 | Z177: 100 | AA177: 93.89745841 | AB177: 85.9609817
H178: 14 | I178: Koruza za zrnje | J178: =+J$67 -> Stroški, zmanjšani za subvencije/kg | K178: =+K$67 -> EUR/kg | O178: =+O177/O169 -> 0.156881941 | Q178: =+Q177/Q169 -> 0.1489132797 | R178: =+R177/R169 -> 0.1512274593 | S178: 0.156881941 | T178: 0.1636757281 | U178: 0.1685715707 | V178: 0.1480652196 | X178: 94.92060002 | Y178: 96.39570904 | Z178: 100 | AA178: 104.3305093 | AB178: 107.4512271
A179: davek_a | H179: 15 | J179: =+J142 -> davek_a | O179: 25.25526205 | Q179: 24.25508115 | R179: 25.20396054 | S179: 25.25526205 | T179: 25.30660563 | U179: 25.3579492 | V179: 28.02847126 | X179: 96.03971284 | Y179: 99.79686802 | Z179: 100 | AA179: 100.2032985 | AB179: 100.406597
A180: Pokoj obvezno | H180: 16 | J180: =+A180 -> Pokoj obvezno | O180: 19.69874789 | Q180: 20.97402771 | R180: 19.76395471 | S180: 19.69874789 | T180: 19.63344618 | U180: 19.56814448 | V180: 16.18200172 | X180: 106.4739131 | Y180: 100.3310201 | Z180: 100 | AA180: 99.6684982 | AB180: 99.3369964
A181: Zdrav obvezno | H181: 17 | J181: Zdrav obvezno | O181: 9.01058855 | Q181: 9.593926225 | R181: 9.040415414 | S181: 9.01058855 | T181: 8.980718287 | U181: 8.950848023 | V181: 7.401960789 | X181: 106.4739131 | Y181: 100.3310201 | Z181: 100 | AA181: 99.6684982 | AB181: 99.3369964
A182: Pokoj dodatno | H182: 18 | J182: Pokoj dodatno | O182: 14.87840214 | Q182: 15.84161697 | R182: 14.92765265 | S182: 14.87840214 | T182: 14.82907997 | U182: 14.7797578 | V182: 12.22221486 | X182: 106.4739131 | Y182: 100.3310201 | Z182: 100 | AA182: 99.6684982 | AB182: 99.3369964
A183: Zdrav dodatno | H183: 19 | J183: Zdrav dodatno | O183: 6.805669108 | Q183: 7.246262214 | R183: 6.828197245 | S183: 6.805669108 | T183: 6.783108193 | U183: 6.760547277 | V183: 5.590677635 | X183: 106.4739131 | Y183: 100.3310201 | Z183: 100 | AA183: 99.6684982 | AB183: 99.3369964
A184: Regresi | H184: 20 | J184: Regresi | O184: 43.37986241 | Q184: 46.18823702 | R184: 43.5234585 | S184: 43.37986241 | T184: 43.23605739 | U184: 43.09225236 | V184: 35.63541258 | X184: 106.4739131 | Y184: 100.3310201 | Z184: 100 | AA184: 99.6684982 | AB184: 99.3369964
A185: SUM element | H185: 21 | J185: SUM element | O185: 1845.468951 | Q185: 2065.716578 | R185: 1940.228275 | S185: 1845.468951 | T185: 1749.654401 | U185: 1625.06872 | V185: 1753.700163 | X185: 111.9345073 | Y185: 105.1347016 | Z185: 100 | AA185: 94.80811908 | AB185: 88.05722357
A186: reg+prem+dod1 | B186: reg+prem+dod5 | C186: reg+prem+dod3 | D186: reg+prem+dod4 | E186: reg+prem+dod5 | H186: 22 | J186: =+J149 -> Subvencije | O186: 276.6495416 | Q186: 278.7572214 | R186: 276.7262225 | S186: 276.6495416 | T186: 276.5728482 | U186: 276.4961547 | V186: 273.0479673 | X186: 100.7618591 | Y186: 100.0277177 | Z186: 100 | AA186: 99.97227776 | AB186: 99.94455551
A187: vred glav prid | H187: 23 | J187: =+J150 -> Vrednost pridelave_tržna | O187: 2130 | Q187: 2556 | R187: 2343 | S187: 2130 | T187: 1917 | U187: 1704 | V187: 2130 | X187: 120 | Y187: =R187/$S187*100 -> 110 | Z187: =S187/$S187*100 -> 100 | AA187: =T187/$S187*100 -> 90 | AB187: 80
H188: 24 | O188: =+O173-O186-O174 -> 1568.81941 | P188: stroški vsi | Q188: =+Q173-Q186-Q174 -> 1786.959356 | R188: =+R173-R186-R174 -> 1663.502053 | S188: 1568.81941 | T188: 1473.081553 | U188: 1348.572566 | V188: 1480.652196 | X188: =Q188/$S188*100 -> 113.90472 | Y188: 106.0352799 | Z188: 100 | AA188: 93.89745841 | AB188: 85.9609817
H189: 25 | O189: =O188-O180-O181 -> 1540.110073 | P189: stroški-obv dajatve | Q189: =Q188-Q180-Q181 -> 1756.391402 | R189: =R188-R180-R181 -> 1634.697683 | S189: 1540.110073 | T189: 1444.467388 | U189: 1320.053573 | V189: 1457.068233
H190: 26 | O190: =O189-O182-O183-O184 -> 1475.046139 | P190: stroški-vse dajatve | Q190: =Q189-Q182-Q183-Q184 -> 1687.115286 | R190: =R189-R182-R183-R184 -> 1569.418374 | S190: 1475.046139 | T190: 1379.619143 | U190: 1255.421016 | V190: 1403.619928
H191: 27
H192: 28 | O192: =+O169&";"&O171 -> 10000;1 | Q192: =+Q169&";"&Q171 -> 12000;1 | R192: =+R169&";"&R171 -> 11000;1 | S192: 10000;1 | T192: 9000;1 | U192: 8000;1 | V192: 10000;5
H193: 29 | O193: =+O188/O169*1000 -> 156.881941 | P193: Polne dajatve in pravice iz dela | Q193: =+Q188/Q169*1000 -> 148.9132797 | R193: =+R188/R169*1000 -> 151.2274593 | S193: 156.881941 | T193: 163.6757281 | U193: 168.5715707 | V193: 148.0652196
H194: 30 | O194: =+O193*O189/O188 -> 154.0110073 | P194: Minimalne obveznosti iz dela | Q194: =+Q193*Q189/Q188 -> 146.3659502 | R194: =+R193*R189/R188 -> 148.6088802 | S194: 154.0110073 | T194: 160.4963765 | U194: 165.0066966 | V194: 145.7068233
H195: 31 | O195: =+O193*O190/O188 -> 147.5046139 | P195: Brez dajatev in pravic iz dela | Q195: =+Q193*Q190/Q188 -> 140.5929405 | R195: =+R193*R190/R188 -> 142.6743977 | S195: 147.5046139 | T195: 153.2910158 | U195: 156.927627 | V195: 140.3619928
H196: 32 | O196: =+O193-O195 -> 9.37732701 | P196: sivo | Q196: =+Q193-Q195 -> 8.320339178 | R196: =+R193-R195 -> 8.553061683 | S196: 9.37732701 | T196: 10.38471222 | U196: 11.64394374 | V196: 7.703226759
H197: 33
A198: Pc | F198: 1000 | H198: 34 | J198: Odkupna cena; vir podatkov SURS; preračuni KIS | O198: 213 | P198: =J198 -> Odkupna cena; vir podatkov SURS; preračuni KIS | Q198: 213 | R198: 213 | S198: 213 | T198: 213 | U198: 213 | V198: 213
H199: 35 | J199: =+J162 -> Bruto dodana vrednost | O199: =O187+O186+O174-O172 -> 965.5344205 | P199: =P187+P186-P172 -> 0 | Q199: =Q187+Q186+Q174-Q172 -> 1197.775767 | R199: =R187+R186+R174-R172 -> 1086.603498 | S199: 965.5344205 | T199: 845.4821564 | U199: 753.7452423 | V199: 991.8057334
A200: Amortizacija | H200: 36 | J200: Amortizacija | O200: 124.6175549 | Q200: 134.0587303 | R200: 126.4448689 | S200: 124.6175549 | T200: 122.785662 | U200: 120.9537691 | V200: 103.8383367
H201: 37 | J201: Neto dodana vrednsot | O201: =+O199-O200 -> 840.9168657 | Q201: =+Q199-Q200 -> 1063.717037 | R201: =+R199-R200 -> 960.1586288 | S201: 840.9168657 | T201: 722.6964944 | U201: 632.7914732 | V201: 887.9673967
H202: =1 -> 1 | I202: =+J204 -> Krompir pozni | J202: KMETIJSKI INŠTITUT SLOVENIJE | O202: =O210-O222+O215-'2021'!L181-'2021'!L178 -> 1.818989404e-12 | Q202: =Q210-Q222+Q215-'2021'!O181-'2021'!O178 -> -3.637978807e-12 | R202: =R210-R222+R215-'2021'!P181-'2021'!P178 -> 1.818989404e-12 | S202: =S210-S222+S215-'2021'!Q181-'2021'!Q178 -> 0 | T202: =T210-T222+T215-'2021'!R181-'2021'!R178 -> 0 | U202: =U210-U222+U215-'2021'!S181-'2021'!S178 -> 0 | V202: =V210-V222+V215-'2021'!T181-'2021'!T178 -> 0
H203: =H202+1 -> 2 | I203: =+I202 -> Krompir pozni | J203: Oddelek za ekonomiko kmetijstva | O203: =#REF! ->  | Q203: krompirB | R203: krompirA | S203: krompirC | T203: krompirD | U203: krompirE | V203: krompirF
F204: =#REF! ->  | H204: =H203+1 -> 3 | I204: =+I203 -> Krompir pozni | J204: Krompir pozni | K204: =+K$56 -> Enota | X204: Indeks: M 1 =100
H205: 4 | I205: =+I204 -> Krompir pozni | J205: Model | R205: M 2 | S205: M 3 | T205: M 4 | X205: =R205 -> M 2 | Y205: =S205 -> M 3 | Z205: =T205 -> M 4
A206: Prid (neto za LC v analitični) | H206: 5 | I206: =+I205 -> Krompir pozni | J206: Intenzivnost pridelave | K206: Kg/ha | O206: 40000 | Q206: 50000 | R206: 40000 | S206: 30000 | T206: 25000 | U206: 30000 | V206: 40000 | X206: =R206/$Q206*100 -> 80 | Y206: =S206/$Q206*100 -> 60 | Z206: =S206/$Q206*100 -> 60
A207: str1_kg | H207: 6
A208: vel parcele | H208: 7 | I208: =+I206 -> Krompir pozni | J208: Velikost poljine | K208: ha | O208: 1 | Q208: 1 | R208: 1 | S208: 1 | T208: 1 | U208: 0.2 | V208: 0.5
A209: Kupljen material in storitve | H209: 8 | I209: =+I204 -> Krompir pozni | J209: =+J$61 -> Kupljen material in storitve | O209: 4426.904332 | Q209: 4595.347869 | R209: 4426.904332 | S209: 4202.463616 | T209: 4024.687367 | U209: 4292.266671 | V209: 4463.373867
A210: STROŠKI SKUPAJ | H210: 9 | I210: =+I209 -> Krompir pozni | J210: =+J$62 -> Stroški skupaj | K210: =+K$62 -> EUR/ha | O210: 8421.695622 | Q210: 9147.901573 | R210: 8421.695622 | S210: 7621.434125 | T210: 7144.185286 | U210: 7957.235618 | V210: 8559.679933 | X210: =R210/$Q210*100 -> 92.06150235 | Y210: 83.31346882 | Z210: 78.09643806
A211: Stranski pridelki | H211: 10 | I211: Krompir pozni | J211: =+J$63 -> Stranski pridelki | K211: =+K$63 -> EUR/ha | O211: 579.2 | Q211: 724 | R211: 579.2 | S211: 434.4 | T211: 362 | U211: 434.4 | V211: 579.2 | X211: 80 | Y211: 60 | Z211: 50
H212: 11 | I212: Krompir pozni | J212: =+J$64 -> Stroški glavnega pridelka | K212: =+K$64 -> EUR/ha | O212: =+O210-O211 -> 7842.495622 | Q212: =+Q210-Q211 -> 8423.901573 | R212: =+R210-R211 -> 7842.495622 | S212: 7187.034125 | T212: 6782.185286 | U212: 7522.835618 | V212: 7980.479933 | X212: 93.09813931 | Y212: 85.31716642 | Z212: 80.51121237
A213: reg+prem+dod1 | B213: reg+prem+dod5 | C213: reg+prem+dod3 | D213: reg+prem+dod4 | E213: reg+prem+dod5 | H213: 12 | I213: Krompir pozni | J213: =+J$65 -> Subvencije | K213: =+K$65 -> EUR/ha | O213: 307.7308178 | Q213: 307.7308178 | R213: 307.7308178 | S213: 307.7308178 | T213: 307.7308178 | U213: 307.7308178 | V213: 307.7308178 | X213: 100 | Y213: 100 | Z213: 100
C214: delo | H214: 13 | I214: Krompir pozni | J214: =+J$66 -> Stroški, zmanjšani za subvencije | K214: =+K$66 -> EUR/ha | O214: =+O212-O213 -> 7534.764804 | Q214: =+Q212-Q213 -> 8116.170756 | R214: =+R212-R213 -> 7534.764804 | S214: 6879.303307 | T214: 6474.454468 | U214: 7215.1048 | V214: 7672.749115
H215: 14 | I215: Krompir pozni | J215: =+J$67 -> Stroški, zmanjšani za subvencije/kg | K215: =+K$67 -> EUR/kg | O215: =+O214/O206 -> 0.1883691201 | Q215: =+Q214/Q206 -> 0.1623234151 | R215: =+R214/R206 -> 0.1883691201 | S215: 0.2293101102 | T215: 0.2589781787 | U215: 0.2405034933 | V215: 0.1918187279 | X215: =R215/$Q215*100 -> 116.0455625 | Y215: =S215/$Q215*100 -> 141.2674259 | Z215: =T215/$Q215*100 -> 159.5445602
A216: davek_a | H216: 15 | I216: Krompir pozni | J216: =+J179 -> davek_a | O216: 0 | Q216: 0 | R216: 0 | S216: 0 | T216: 0 | U216: 0 | V216: 0
A217: Pokoj obvezno | H217: 16 | I217: Krompir pozni | J217: =+A217 -> Pokoj obvezno | O217: 303.4457324 | Q217: 348.4642163 | R217: 303.4457324 | S217: 257.4167867 | T217: 233.7821843 | U217: 274.2893689 | V217: 310.4592857
A218: Zdrav obvezno | H218: 17 | I218: Krompir pozni | J218: Zdrav obvezno | O218: 138.8019511 | Q218: 159.394277 | R218: 138.8019511 | S218: 117.7474205 | T218: 106.9364959 | U218: 125.4652661 | V218: 142.0100862
A219: Pokoj dodatno | H219: 18 | I219: Krompir pozni | J219: Pokoj dodatno | O219: 229.1916045 | Q219: 263.1939234 | R219: 229.1916045 | S219: 194.426087 | T219: 176.5749464 | U219: 207.1698951 | V219: 234.4889192
A220: Zdrav dodatno | H220: 19 | I220: Krompir pozni | J220: Zdrav dodatno | O220: 104.8366758 | Q220: 120.3899946 | R220: 104.8366758 | S220: 88.93425527 | T220: 80.76879805 | U220: 94.76351975 | V220: 107.2597701
A221: Regresi | H221: 20 | I221: Krompir pozni | J221: Regresi | O221: 668.2370978 | Q221: 767.3751573 | R221: 668.2370978 | S221: 566.8738364 | T221: 514.8265792 | U221: 604.0300201 | V221: 683.6820885
A222: SUM element | H222: 21 | I222: Krompir pozni | J222: SUM element | O222: 8421.695622 | Q222: 9147.901573 | R222: 8421.695622 | S222: 7621.434125 | T222: 7144.185286 | U222: 7957.235618 | V222: 8559.679933
A223: reg+prem+dod1 | B223: reg+prem+dod5 | C223: reg+prem+dod3 | D223: reg+prem+dod4 | E223: reg+prem+dod5 | H223: 22 | I223: Krompir pozni | J223: =+J186 -> Subvencije | O223: 307.7308178 | Q223: 307.7308178 | R223: 307.7308178 | S223: 307.7308178 | T223: 307.7308178 | U223: 307.7308178 | V223: 307.7308178
A224: vred glav prid | H224: 23 | I224: Krompir pozni | J224: =+J187 -> Vrednost pridelave_tržna | O224: 14480 | Q224: 18100 | R224: 14480 | S224: 10860 | T224: 9050 | U224: 10860 | V224: 14480
H225: 24 | I225: Krompir pozni | O225: =+O210-O223-O211 -> 7534.764804 | P225: stroški vsi | Q225: =+Q210-Q223-Q211 -> 8116.170756 | R225: =+R210-R223-R211 -> 7534.764804 | S225: 6879.303307 | T225: 6474.454468 | U225: 7215.1048 | V225: 7672.749115
H226: 25 | I226: Krompir pozni | O226: =O225-O217-O218 -> 7092.517121 | P226: stroški-obv dajatve | Q226: =Q225-Q217-Q218 -> 7608.312262 | R226: =R225-R217-R218 -> 7092.517121 | S226: =S225-S217-S218 -> 6504.1391 | T226: =T225-T217-T218 -> 6133.735788 | U226: =U225-U217-U218 -> 6815.350165 | V226: =V225-V217-V218 -> 7220.279743
H227: 26 | I227: Krompir pozni | O227: =O226-O219-O220-O221 -> 6090.251743 | P227: stroški-vse dajatve | Q227: =Q226-Q219-Q220-Q221 -> 6457.353187 | R227: =R226-R219-R220-R221 -> 6090.251743 | S227: =S226-S219-S220-S221 -> 5653.904921 | T227: =T226-T219-T220-T221 -> 5361.565464 | U227: =U226-U219-U220-U221 -> 5909.38673 | V227: =V226-V219-V220-V221 -> 6194.848965
H228: 27 | I228: Krompir pozni
H229: 28 | I229: Krompir pozni | O229: =+O206&";"&O208 -> 40000;1 | Q229: =+Q206&";"&Q208 -> 50000;1 | R229: =+R206&";"&R208 -> 40000;1 | S229: 30000;1 | T229: 25000;1 | U229: 30000;0,2 | V229: 40000;0,5
H230: 29 | I230: Krompir pozni | O230: =+O225/O206*1000 -> 188.3691201 | P230: Polne dajatve in pravice iz dela | Q230: =+Q225/Q206*1000 -> 162.3234151 | R230: =+R225/R206*1000 -> 188.3691201 | S230: 229.3101102 | T230: 258.9781787 | U230: 240.5034933 | V230: 191.8187279
H231: 30 | I231: Krompir pozni | O231: =+O230*O226/O225 -> 177.312928 | P231: Minimalne obveznosti iz dela | Q231: =+Q230*Q226/Q225 -> 152.1662452 | R231: =+R230*R226/R225 -> 177.312928 | S231: 216.8046367 | T231: 245.3494315 | U231: 227.1783388 | V231: 180.5069936
H232: 31 | I232: Krompir pozni | O232: =+O230*O227/O225 -> 152.2562936 | P232: Brez dajatev in pravic iz dela | Q232: =+Q230*Q227/Q225 -> 129.1470637 | R232: =+R230*R227/R225 -> 152.2562936 | S232: 188.4634974 | T232: 214.4626186 | U232: 196.9795577 | V232: 154.8712241
H233: 32 | I233: Krompir pozni | O233: =+O230-O232 -> 36.11282654 | P233: sivo | Q233: =+Q230-Q232 -> 33.17635137 | R233: =+R230-R232 -> 36.11282654 | S233: 40.84661286 | T233: 44.51556016 | U233: 43.52393566 | V233: 36.94750374
H234: 33 | I234: Krompir pozni
A235: Pc | F235: 1000 | H235: 34 | I235: Krompir pozni | J235: Odkupna cena; vir podatkov SURS; preračuni KIS | O235: 362 | P235: =P236 -> Odkupna cena; vir podatkov SURS; preračuni KIS | Q235: 362 | R235: 362 | S235: 362 | T235: 362 | U235: 362 | V235: 362
H236: 35 | I236: Krompir pozni | J236: =+J199 -> Bruto dodana vrednost | O236: =O224+O223+O211-O209 -> 10940.02649 | P236: Odkupna cena; vir podatkov SURS; preračuni KIS | Q236: =Q224+Q223+Q211-Q209 -> 14536.38295 | R236: 10940.02649 | S236: 7399.667202 | T236: 5695.043451 | U236: 7309.864147 | V236: 10903.55695
A237: Amortizacija | H237: 36 | I237: Krompir pozni | J237: Amortizacija | O237: 512.5734568 | Q237: 568.2467569 | R237: 512.5734568 | S237: 451.8413887 | T237: 418.3635128 | U237: 500.6243385 | V237: 532.2630487
H238: 37 | J238: Neto dodana vrednsot | O238: =+O236-O237 -> 10427.45303 | Q238: =+Q236-Q237 -> 13968.13619 | R238: 10427.45303 | S238: 6947.825813 | T238: 5276.679938 | U238: 6809.239809 | V238: 10371.2939
H239: =1 -> 1 | I239: =+J241 -> Jabolka namizna | J239: KMETIJSKI INŠTITUT SLOVENIJE | O239: =O247-O259+O252-'2021'!L216 -> 0 | Q239: =Q247-Q259+Q252-'2021'!O216 -> -3.637978807e-12 | R239: =R247-R259+R252-'2021'!P216 -> 0 | S239: =S247-S259+S252-'2021'!Q216 -> 3.637978807e-12 | T239: =T247-T259+T252-'2021'!R216 -> 0 | U239: =U247-U259+U252-'2021'!S216 -> 3.637978807e-12
... 180 more rows
